Cogmind - Beta 16.1 @@@ ROGUE MODE // 2026.02.19 @ 03:56:24 Player: spider Result: Self-destructed Performance ------------- Evolutions (8) 4000 Regions Visited (31) 6200 Robots Destroyed (364) 1820 Value Destroyed (20151) 20151 Prototype IDs (40) 800 Alien Tech Used (0) 0 Bonus (14168) 14168 TOTAL SCORE: 47139 Bonus ------- High Alert Combat Kills 1434 Follower Combat Kills 3798 Hunted by Unchained 500 Entered Garrisons 1400 Used RIF Installer 4500 Network Hubs Disabled 200 Aligned with FarCom 300 Built Enhanced Grunts 300 A7 Reached Mainframe 300 Met R17 at Cetus 500 Met R17 at Research 2000 Friendly Fire -1064 Cogmind --------- Core Integrity 1003/1450 Matter 17/300 Energy 12/100 System Corruption 17% Temperature Cool (12) Movement Treading (165) Location -2/Research Parts ------- > --- POWER (3) -------- (None) > --- PROPULSION (6) --- Armored Medium Treads Advanced Heavy Siege Treads > --- UTILITY (11) ----- Advanced Cooling System Huge Storage Unit Advanced Sensor Array Advanced Signal Interpreter Hacking Suite Relay Coupler [NC] (68) Relay Coupler [Grunt] (1) Relay Coupler [Sentry] (19) > --- WEAPON (3) ------- (None) > --- INVENTORY (25) --- Improved Cooling System High-capacity Matter Pod (200) Modified TNC Improved Shield Generator Advanced Force Field Relay Coupler [Swarmer] (26) Relay Coupler [Sentry] (25) Relay Coupler [Hunter] (15) Relay Coupler [Behemoth] (10) Relay Coupler [Proto] (9) Relay Coupler [Proto] (10) Relay Coupler [Proto] (10) Relay Coupler [Proto] (10) Relay Coupler [Proto] (10) Compact HERF Cannon Enhanced Nova Cannon Proton Missile Launcher Advanced Remote Datajack Peak State ------------ > --- POWER ------------ Light Antimatter Reactor Light Antimatter Reactor Hybrid Antimatter Reactor > --- PROPULSION ------- Improved Heavy Treads Improved Heavy Treads Improved Heavy Treads > --- UTILITY ---------- Improved Cooling System Advanced Cooling System Huge Storage Unit Advanced Sensor Array Advanced Signal Interpreter Hardened Heavy Armor Plating Advanced Force Field Hacking Suite Relay Coupler [NC] Relay Coupler [Sentry] > --- WEAPON ----------- Compact HERF Cannon Heavy Linear Accelerator > --- INVENTORY -------- Light Quantum Reactor Armored Medium Treads Improved Heavy Treads High-capacity Matter Pod Modified TNC Weapon Cycler Improved Shield Generator Advanced Force Field Relay Coupler [Swarmer] Relay Coupler [Grunt] Relay Coupler [Sentry] Relay Coupler [Hunter] Relay Coupler [Behemoth] Relay Coupler [Proto] Relay Coupler [Proto] Relay Coupler [Proto] Relay Coupler [Proto] Relay Coupler [Proto] Enhanced Nova Cannon Linear Accelerator Heavy Linear Accelerator Proton Missile Launcher Advanced Remote Datajack [Rating: 148] Favorites ----------- Power Cooled Ion Engine Engine Cooled Ion Engine Power Core Light Neutrino Core Reactor Antimatter Reactor Propulsion Light Treads Treads Light Treads Leg Advanced Myomer Leg Wheel Armored Huge Wheel Flight Unit Improved VTOL Module Utility Huge Storage Unit Device Improved Cooling System Storage Huge Storage Unit Processor Experimental Core Analyzer Hackware Relay Coupler [NC] Protection Improved Light Armor Plating Weapon Improved Assault Rifle Energy Gun Particle Gun Energy Cannon Heavy Plasma Cannon Ballistic Gun Improved Assault Rifle Ballistic Cannon Heavy Mass Driver Launcher EMP Blaster Special Weapon Improved Remote Datajack Slashing Weapon Longsword +1 Piercing Weapon Force Lance Special Melee Weapon Datajack Build | -11 -10 -10 -9 -9 -9 -8 -8 -8 -8 -8 -8 -8 -7 -7 -7 -7 -6 -6 -6 -6 -6 -6 -6 -5 -5 -4 -4 -4 -3 -3 -2 ------- Run | Yrd Mat Min Mat Min Exi Min Mat Gar Mat Gar Mat Gar Fac Was Fac Gar Fac Gar Fac Ext Cet Arc Hub Fac Gar Fac Was Fac Res Gar Res Slots Evolved 16 | . . . 2 . . . 2 . . . . . 2 . . . 2 . . . . . . 2 . 2 . . 2 . 2 Power 2 | . . . . . . . . . . . . . . . . . 1 . . . . . . . . . . . . . 1 Propulsion 4 | . . . 1 . . . . . . . . . . . . . 1 . . . . . . . . 2 . . . . . Utility 9 | . . . . . . . 2 . . . . . 2 . . . . . . . . . . 2 . . . . 2 . 1 Weapon 1 | . . . 1 . . . . . . . . . . . . . . . . . . . . . . . . . . . . Parts Attached 252 | 7 6 . 20 . 18 . 16 13 . 8 2 6 1 11 7 27 3 6 4 4 5 4 5 5 20 2 7 15 1 21 8 Power 24 | 1 . . 2 . 1 . . 2 . . . . . 2 1 1 1 . 2 . 2 1 . 1 2 . . 1 . 2 2 Engine 7 | 1 . . 1 . . . . 2 . . . . . . 1 . 1 . 1 . . . . . . . . . . . . Core 5 | . . . 1 . 1 . . . . . . . . . . . . . 1 . . . . 1 1 . . . . . . Reactor 12 | . . . . . . . . . . . . . . 2 . 1 . . . . 2 1 . . 1 . . 1 . 2 2 Propulsion 48 | 2 . . 9 . 6 . 5 2 . . . 1 . 2 . 4 1 . . . 2 . . . 1 1 3 1 . 5 3 Treads 45 | 2 . . 9 . 5 . 4 2 . . . . . 2 . 4 1 . . . 2 . . . 1 1 3 1 . 5 3 Leg 1 | . . . . . 1 . . . . . . . . . . . . . . . . . . . . . . . . . . Wheel 1 | . . . . . . . . . . . . 1 . . . . . . . . . . . . . . . . . . . Hover . | . . . . . . . . . . . . . . . . . . . . . . . . . . . . . . . . Flight 1 | . . . . . . . 1 . . . . . . . . . . . . . . . . . . . . . . . . Utility 122 | 1 3 . 4 . 7 . 7 6 . 7 1 3 1 7 5 15 . 5 2 4 1 3 5 2 10 1 2 9 1 8 2 Device 33 | . . . 3 . 3 . 1 2 . . . 1 1 4 1 3 . . 1 . . 2 . 1 2 . . 4 . 3 1 Storage 6 | 1 2 . 1 . . . . . . . . . . . . 1 . . 1 . . . . . . . . . . . . Processor 2 | . . . . . . . . . . . . . . . 1 . . . . . . . . . . . . 1 . . . Hackware 43 | . . . . . . . . 1 . 5 1 2 . 1 2 7 . 3 . 3 . 1 4 . 8 1 . 1 . 2 1 Protection 38 | . 1 . . . 4 . 6 3 . 2 . . . 2 1 4 . 2 . 1 1 . 1 1 . . 2 3 1 3 . Artifact . | . . . . . . . . . . . . . . . . . . . . . . . . . . . . . . . . Weapon 58 | 3 3 . 5 . 4 . 4 3 . 1 1 2 . . 1 7 1 1 . . . . . 2 7 . 2 4 . 6 1 Energy Gun 7 | 2 1 . . . . . . . . . . . . . . 2 . . . . . . . . 2 . . . . . . Energy Cannon 13 | . . . . . . . . . . . . . . . . 2 1 . . . . . . 1 2 . 1 4 . 2 . Ballistic Gun 19 | 1 2 . 4 . 2 . 4 2 . . 1 2 . . 1 . . . . . . . . . . . . . . . . Ballistic Cannon 8 | . . . . . . . . . . . . . . . . 2 . . . . . . . . 2 . . . . 3 1 Launcher 4 | . . . 1 . 1 . . . . . . . . . . . . 1 . . . . . 1 . . . . . . . Special Weapon 4 | . . . . . . . . . . 1 . . . . . 1 . . . . . . . . 1 . 1 . . . . Impact Weapon . | . . . . . . . . . . . . . . . . . . . . . . . . . . . . . . . . Slashing Weapon 1 | . . . . . 1 . . . . . . . . . . . . . . . . . . . . . . . . . . Piercing Weapon 1 | . . . . . . . . . . . . . . . . . . . . . . . . . . . . . . 1 . Special Melee Weapon 1 | . . . . . . . . 1 . . . . . . . . . . . . . . . . . . . . . . . Unidentified Prototypes 14 | . 1 . 1 . 4 . 2 . . . . . . . 2 1 . . 1 . 2 . . . . . . . . . . Corrupted Parts 2 | . . . . . . . . . . . . . . . . . . . . . . 1 . . . . . . . . 1 System Corruption 18 | . . . . . . . . . . . . . . . . . . . . . . 4 . . . . . . . . 14 Parts Lost 64 | . . . 2 . 8 . 2 5 . . 1 2 . . . 3 . . . . 1 . 2 2 5 . . 4 . 13 14 Power 13 | . . . 1 . . . . 2 . . . . . . . . . . . . 1 . 1 1 . . . 1 . 2 4 Propulsion 12 | . . . . . 2 . . . . . . . . . . 1 . . . . . . . . 1 . . 1 . 3 4 Utility 22 | . . . 1 . 4 . 2 1 . . . . . . . . . . . . . . 1 1 1 . . 1 . 7 3 Weapon 17 | . . . . . 2 . . 2 . . 1 2 . . . 2 . . . . . . . . 3 . . 1 . 1 3 Highest Loss Streak 8 | . . . 1 . 4 . 1 1 . . 1 2 . . . 2 . . . . 1 . 2 2 5 . . 2 . 8 5 To Critical Strikes 3 | . . . . . 1 . . . . . . . . . . . . . . . . . . . . . . . . . 2 Average Backups 22 | 3 11 19 21 24 18 24 23 23 24 23 23 22 24 22 18 20 22 23 24 23 23 23 23 19 24 25 24 23 23 23 22 Power 1 | . 1 1 1 1 1 1 1 . 1 1 1 1 1 1 1 . . . 1 1 1 1 1 . . 1 1 . 1 . . Propulsion 4 | 1 4 8 8 9 7 9 8 5 4 4 4 4 4 2 2 2 . 1 1 1 1 1 1 1 2 2 . . . 1 1 Utility 11 | . 2 2 5 7 5 8 7 11 13 11 11 11 14 14 11 12 16 15 16 14 14 13 15 10 15 16 17 17 16 14 14 Weapon 5 | 1 3 8 6 7 4 6 6 4 5 5 6 4 3 3 3 4 4 5 6 6 6 5 6 5 4 5 4 3 5 5 4 Tool/Special . | . . . . . . . . . . . . . . . . . . . . . . . . . . . . . . . . Unused Backups 97 | . 1 1 14 . 4 . 6 9 . 1 . . 1 7 . 6 . 3 . . 3 . . . 8 . 3 8 3 6 13 Power 14 | . . 1 1 . 3 . 1 . . . . . 1 1 . . . . . . 1 . . . 2 . . 1 2 . . Propulsion 19 | . . . 7 . 1 . 2 2 . . . . . 4 . 1 . . . . . . . . . . 1 . . 1 . Utility 47 | . . . 1 . . . 1 6 . 1 . . . 2 . 4 . 3 . . 2 . . . 4 . 2 5 1 3 12 Weapon 17 | . 1 . 5 . . . 2 1 . . . . . . . 1 . . . . . . . . 2 . . 2 . 2 1 Tool/Special . | . . . . . . . . . . . . . . . . . . . . . . . . . . . . . . . . Average Slot Usage (%) 91 | . 97 100 99 100 99 100 98 99 100 99 99 99 80 76 91 91 85 80 80 79 81 79 78 85 86 78 73 83 84 76 73 Engine 4 | . 13 14 10 11 8 . . 4 9 9 9 9 7 2 . . 5 6 5 6 1 . . . . . . . . . . Core 1 | . . . . . 2 11 9 4 . . . . . . . . . . 4 6 1 . . . 2 . . . . . . Reactor 3 | . . . . . . . . . . . . . . 4 6 7 6 6 2 . 9 13 12 7 8 10 10 9 9 8 10 Treads 21 | . 27 28 32 33 32 33 27 27 27 27 27 26 7 12 15 14 12 13 13 13 13 13 13 11 11 10 16 15 14 11 12 Device 7 | . . . 10 11 6 11 6 4 . . . 2 11 9 18 7 6 3 6 3 6 6 . 13 16 10 2 12 19 13 13 Storage 8 | . 14 14 11 11 9 11 9 9 9 9 9 9 7 7 7 7 6 6 6 6 6 6 6 5 5 5 5 5 4 4 4 Processor 2 | . . . . . . . . . . . . . . . 6 7 6 6 6 6 6 6 6 2 . . . . 4 4 4 Hackware 7 | . . . . . . . . . . 12 14 9 . 2 2 9 13 16 13 19 14 13 21 11 12 14 15 13 9 11 15 Protection 9 | . 12 14 . . 4 . 19 21 27 14 12 14 15 9 9 11 6 5 6 3 4 5 2 10 9 10 6 9 8 6 3 Energy Gun 1 | . 10 . . . . . . . . . . . . . . 7 . . . . . . . . 3 5 5 . . . . Energy Cannon 1 | . . . . . . . . . . . . . . . . 2 7 1 . . 4 . . 15 5 5 6 11 9 5 . Ballistic Gun 15 | . 17 28 32 33 32 26 26 23 27 24 23 24 18 21 22 7 5 2 . . . . . . . . . . . . . Ballistic Cannon 1 | . . . . . . . . . . . . . . . . 2 4 5 6 6 3 5 6 . 1 . . . . 5 5 Special Weapon 1 | . . . . . . . . . . . 2 . 2 . . 1 . 1 6 6 6 . 5 . 3 5 3 2 4 . 1 Peak Build Rating 148 | 6 13 14 20 20 37 33 44 47 37 42 43 47 49 71 69 75 85 93 92 90 115 120 120 128 128 129 140 133 132 136 148 Average Rating 62 | 4 9 13 18 20 23 30 38 41 37 38 39 38 46 62 65 67 84 88 90 87 104 117 115 119 118 124 134 124 131 124 138 On Entrance 68 | . 6 13 14 20 20 32 33 41 37 37 38 39 47 49 61 63 75 85 91 90 87 115 119 105 115 125 129 124 123 132 135 Avg Prop Armor Cover (%) 5 | . . . . . . . . . . 4 . 8 7 7 . . . . . . . . . . . 5 8 . . . . Naked Turns . | . . . . . . . . . . . . . . . . . . . . . . . . . . . . . . . . Heaviest Build 193 | 13 54 54 99 99 106 98 124 128 117 117 103 105 106 152 116 134 144 150 150 137 154 159 159 167 155 155 189 165 159 182 193 Greatest Support 225 | 40 40 40 60 60 63 60 60 60 60 60 60 60 28 90 90 100 140 140 140 140 160 160 160 160 160 182 225 215 215 225 225 Greatest Overweight (x) 7 | 4 1 1 1 1 1 1 2 2 1 2 1 3 3 7 1 1 1 1 1 . 1 . . 1 1 . 1 . . 2 5 Average Overweight (x) . | . . 1 . 1 . 1 1 1 1 1 1 1 3 1 1 1 1 . . . . . . . . . . . . . . Largest Inventory Capacity 25 | 8 20 20 25 25 25 25 25 25 25 25 25 25 25 25 25 25 25 25 25 25 25 25 25 25 25 25 25 25 25 25 25 Average Capacity 24 | 7 17 20 22 25 22 25 25 25 25 25 25 25 25 25 25 25 25 25 25 25 25 25 25 25 25 25 25 25 25 25 25 Most Carried 25 | 6 20 20 25 25 25 25 25 25 25 25 25 25 25 25 25 25 25 25 25 25 25 25 25 25 25 25 25 25 25 25 25 Average Carried 23 | 4 11 19 21 24 18 25 24 24 25 24 24 23 25 24 24 24 24 24 25 24 24 24 24 20 24 25 24 24 24 24 24 Final Capacity 25 | 8 20 20 25 25 25 25 25 25 25 25 25 25 25 25 25 25 25 25 25 25 25 25 25 25 25 25 25 25 25 25 25 Final Carried 25 | 5 20 20 25 25 25 25 25 25 25 25 25 25 25 25 25 25 25 25 25 25 25 25 23 24 25 25 24 25 25 25 18 Class Distribution -------------------- 33% | Botlord-Tank 19% | Bothacker-Tank 18% | Tank 9% | Mutant 7% | Scavenger-Tank 5% | Bothacker-Mutant 4% | Botlord-Mutant Dominant Class ---------------- Mutant | -10/Materials Mutant | -10/Mines Tank | -9/Materials Tank | -9/Mines Tank | -9/Exiles Scavenger-Mutant | -8/Mines Scavenger-Tank | -8/Materials Tank | -8/Garrison Bothacker-Tank | -8/Materials Bothacker-Tank | -8/Garrison Bothacker-Tank | -8/Materials Bothacker-Tank | -8/Garrison Botlord-Tank | -7/Factory Bothacker-Tank | -7/Waste Bothacker-Tank | -7/Factory Botlord-Tank | -7/Garrison Botlord-Tank | -6/Factory Botlord-Tank | -6/Garrison Botlord-Tank | -6/Factory Botlord-Tank | -6/Extension Botlord-Tank | -6/Cetus Botlord-Mutant | -6/Archives Bothacker-Tank | -6/Hub_04(d) Bothacker-Tank | -5/Factory Botlord-Tank | -5/Garrison Botlord-Tank | -4/Factory Botlord-Tank | -4/Waste Botlord-Tank | -4/Factory Botlord-Tank | -3/Research Botlord-Tank | -3/Garrison Botlord-Tank | -2/Research Resources | -11 -10 -10 -9 -9 -9 -8 -8 -8 -8 -8 -8 -8 -7 -7 -7 -7 -6 -6 -6 -6 -6 -6 -6 -5 -5 -4 -4 -4 -3 -3 -2 ----------- Run | Yrd Mat Min Mat Min Exi Min Mat Gar Mat Gar Mat Gar Fac Was Fac Gar Fac Gar Fac Ext Cet Arc Hub Fac Gar Fac Was Fac Res Gar Res Matter Collected 15854 | 270 130 99 877 181 923 52 1184 993 . 1319 290 641 15 1036 307 1939 . 680 . 687 159 122 211 97 928 . 231 540 87 723 1133 Remotely . | . . . . . . . . . . . . . . . . . . . . . . . . . . . . . . . . Salvage Created 18725 | 111 640 287 1209 64 555 . 1218 1097 . 967 493 526 15 1413 164 1320 42 425 . 331 235 434 137 231 1138 . 259 1504 70 2195 1645 Parts 921 | 6 43 12 75 7 73 . 72 66 . 51 29 28 1 23 9 67 2 20 . 15 11 37 7 24 36 . 6 52 3 83 63 Haulers Intercepted 9 | . 2 . 3 . . . 4 . . . . . . . . . . . . . . . . . . . . . . . . Recyclers Shooed 7 | 1 1 . 1 . . . 2 . . . . . . . . . . . . . . . . . . . . 1 . . 1 Parts Field Recycled . | . . . . . . . . . . . . . . . . . . . . . . . . . . . . . . . . Retrieved Matter . | . . . . . . . . . . . . . . . . . . . . . . . . . . . . . . . . Parts Self-Destructed . | . . . . . . . . . . . . . . . . . . . . . . . . . . . . . . . . Prevented . | . . . . . . . . . . . . . . . . . . . . . . . . . . . . . . . . Parts Restored . | . . . . . . . . . . . . . . . . . . . . . . . . . . . . . . . . Kills | -11 -10 -10 -9 -9 -9 -8 -8 -8 -8 -8 -8 -8 -7 -7 -7 -7 -6 -6 -6 -6 -6 -6 -6 -5 -5 -4 -4 -4 -3 -3 -2 ------- Run | Yrd Mat Min Mat Min Exi Min Mat Gar Mat Gar Mat Gar Fac Was Fac Gar Fac Gar Fac Ext Cet Arc Hub Fac Gar Fac Was Fac Res Gar Res Combat Hostiles Destroyed 309 | . 18 6 24 4 3 . 23 23 . 21 9 13 . 5 4 27 1 15 . 5 3 2 3 10 18 . 1 20 1 28 22 Melee 1 | . . . . . . . . . . . . . . . . 1 . . . . . . . . . . . . . . . Guns 168 | . 18 6 24 4 3 . 20 16 . 21 9 9 . 5 3 25 . 2 . . . . . . 2 . 1 . . . . Cannons 78 | . . . . . . . . . . . . . . . . 1 1 12 . 5 1 2 3 2 6 . . 13 1 18 13 AOE 31 | . . . . . . . 3 6 . . . 4 . . . . . . . . . . . 8 2 . . 2 . 6 . Classes Destroyed 25 | 3 3 . 3 1 2 . 2 3 . 1 1 . . 1 1 1 . . . 1 . . . . . . . 1 . 1 . Worker 12 | 2 1 . 1 . . . 3 . . . . . . . . . . . . . . . . . . . . 1 1 . 3 Builder 2 | . . . . . . . . . . . . . . . 1 . . . . . . . . . . . . . . . 1 Tunneler 5 | 1 . 1 . . . . 1 . . . . . 1 . . . . . . . . . . 1 . . . . . . . Hauler 9 | . 2 . 3 . . . 4 . . . . . . . . . . . . . . . . . . . . . . . . Recycler 9 | 1 . . 2 . . . . . . . 2 . . . . . . . . . . . . . . . . 2 . . 2 Mechanic 1 | . . . . . . . . . . . 1 . . . . . . . . . . . . . . . . . . . . Operator 10 | . . . 1 . . . . . . . . . . . . . . . . . . 9 . . . . . . . . . Drone 9 | . . . . . . . . . . . . . . . . . . . . . . . . . . . . 1 . 7 1 Turret 1 | . . . . . 1 . . . . . . . . . . . . . . . . . . . . . . . . . . Watcher 3 | . . . . . . . 2 . . . . . . . . . . . . . . . . . . . . . . . 1 Swarmer 80 | . 8 . 7 3 . . 7 3 . 3 5 9 . . 2 5 . 8 . . . . . 4 . . . 4 . 7 5 Cutter 7 | . . . . . . . . . . 1 . . . . . 1 . 2 . . . . . 3 . . . . . . . Grunt 102 | . 10 6 10 . . . 7 7 . 13 2 2 . . . 10 1 3 . . . . 2 . 9 . . 10 . 3 7 Brawler 4 | . . . 1 . . . . 1 . . . . . . . 1 . . . . . . . . . . . . . . 1 Duelist 8 | . . . . . . . . 2 . 1 . . . . . . . . . . . . . . 1 . . 2 . 2 . Sentry 32 | . . . 6 . . . 6 2 . 1 2 . . . . 5 . 2 . 4 . 2 1 1 . . . . . . . Demolisher 1 | . . . . . . . . 1 . . . . . . . . . . . . . . . . . . . . . . . Specialist 2 | . . . . . . . . . . . . . . . . . . . . . . . . 2 . . . . . . . Hunter 18 | . . . . . . . 3 4 . . . . . . 1 1 . . . . . . . . . . . . 1 2 6 Programmer 27 | . . . . . . . . 3 . 3 . 2 . . 1 3 . . . . . . . . 7 . . 3 . 3 2 Q-Series 2 | . . . . . . . . . . . . . . . . . . . . . . . . . . . . . . 2 . Behemoth 3 | . . . . . . . . . . . . . . . . . . . . 1 . . . . . . . . . 2 . Compactor 6 | . . . . . . . . . . . . . . 5 . . . . . . . . . . . . 1 . . . . Cetus Guard 3 | . . . . . . . . . . . . . . . . . . . . . 3 . . . . . . . . . . Zionite 7 | . . . . . 7 . . . . . . . . . . . . . . . . . . . . . . . . . . Assembled 3 | . . . . 1 2 . . . . . . . . . . . . . . . . . . . . . . . . . . Thug 2 | . . . . . . . . . . . . . . . . . . . . 1 1 . . . . . . . . . . Butcher 1 | . . . . . . . . . . . . . . . . 1 . . . . . . . . . . . . . . . Infiltrator 2 | . . . . . . . . . . . . . . . . 1 . . . . . . . . 1 . . . . . . Best Kill Streak 11 | 3 5 3 5 3 6 . 10 3 . 5 11 4 1 1 3 7 1 4 . 2 3 4 2 6 6 . 1 5 1 7 6 Combat Bots Only 9 | . 4 2 5 3 2 . 9 3 . 5 9 4 . 1 2 7 1 4 . 2 3 2 2 6 6 . 1 5 1 7 5 Max Kills in Single Turn 3 | 1 1 1 2 1 1 . 2 2 . 2 2 3 1 1 2 1 1 1 . 1 1 1 1 3 1 . 1 2 1 3 2 Gunslinging 1 | . . . . . . . 1 1 . 1 1 1 . . . . . . . . . . . . . . . . . . . Exploded 3 | . . . . . . . 1 2 . . . 3 . . . . . . . . . . . 2 1 . . 1 . 3 . Melee 1 | . . . . . . . . . . . . . . . . 1 . . . . . . . . . . . . . . . Uniques/NPCs Destroyed 4 | . . . . . 4 . . . . . . . . . . . . . . . . . . . . . . . . . . 8R-AWN (-9/Exiles) EX-BIN (-9/Exiles) EX-HEX (-9/Exiles) EX-DEC (-9/Exiles) Combat | -11 -10 -10 -9 -9 -9 -8 -8 -8 -8 -8 -8 -8 -7 -7 -7 -7 -6 -6 -6 -6 -6 -6 -6 -5 -5 -4 -4 -4 -3 -3 -2 -------- Run | Yrd Mat Min Mat Min Exi Min Mat Gar Mat Gar Mat Gar Fac Was Fac Gar Fac Gar Fac Ext Cet Arc Hub Fac Gar Fac Was Fac Res Gar Res Hostile Shots Fired 2284 | . 68 21 95 10 103 . 110 107 . 92 28 85 . . 44 275 1 80 . 146 14 . 38 103 168 6 . 174 6 196 314 Missed 607 | . 17 1 22 2 26 . 26 21 . 24 1 25 . . 15 86 . 28 . 53 5 . 9 23 44 1 . 47 1 36 94 Hits 1677 | . 51 20 73 8 77 . 84 86 . 68 27 60 . . 29 189 1 52 . 93 9 . 29 80 124 5 . 127 5 160 220 Melee 96 | . . . . . 1 . . 8 . 2 . . . . . 3 . 1 . . . . . 5 5 . . 3 . 63 5 Projectile 1581 | . 51 20 73 8 76 . 84 78 . 66 27 60 . . 29 186 1 51 . 93 9 . 29 75 119 5 . 124 5 97 215 AOE 19 | . . . . . . . . 3 . 1 . 1 . . . . . 6 . . . . . . . . . 6 . . 2 Critical Strikes 130 | . . 1 2 . 28 . 1 5 . 3 1 4 . . 1 5 . . . . 2 1 6 5 13 . . 17 . 19 16 Part Disruptions 4 | . . . . . . . . . . 1 . . . . . . . . . . . . 1 . 1 . . 1 . . . Damage Taken 25712 | . 495 252 631 50 1483 . 1018 1374 . 1114 334 856 . . 376 1370 19 588 . 564 267 23 794 1340 1816 75 46 2398 81 4424 3924 Core 2539 | . 135 51 53 6 234 . 73 48 . 107 51 37 . . 12 152 . 25 . 20 24 . 128 74 186 . . 131 10 535 447 Absorbed by Shields 7105 | . . . 187 22 233 . 134 133 . . . . . . 33 764 . 370 . 267 24 . 105 130 929 28 . 589 83 1759 1315 Reduced by Siege Mode 286 | . . . . . . . . . . . . . . . . . . . . 6 . . . . 24 . . 99 . 157 . Ignored by Resistances 128 | . . . . . . . 18 110 . . . . . . . . . . . . . . . . . . . . . . . Regen/Repaired (Parts) 2274 | . 153 . 190 . . . 119 . . 423 107 425 . . 152 . 91 . 47 272 38 . . . . 257 . . . . . Core Remaining (%) 62 | 100 . 25 . . . 26 . . . . . 42 . . . 76 . . . . . . 76 . 74 . . 88 . 58 . Volleys Fired 1223 | 25 56 14 78 6 83 . 69 59 . 54 15 35 2 59 19 86 5 50 7 58 15 2 15 16 72 18 13 68 17 111 96 Largest 3 | 1 2 2 3 3 3 . 3 3 . 3 3 3 1 3 3 3 3 3 1 1 2 2 1 3 3 1 2 3 2 3 2 Hottest 330 | 40 85 46 66 69 69 . 78 78 . 76 81 81 5 73 73 170 205 205 7 65 165 155 65 270 270 120 185 330 210 323 124 Shots Fired 2465 | 25 108 28 234 18 217 . 192 130 . 148 36 87 2 165 37 184 7 83 7 58 18 4 15 26 132 18 17 98 26 222 123 Gun 1540 | 25 108 28 234 18 201 . 187 115 . 139 31 78 . 159 28 151 1 25 . . . . . . 9 . 3 . . . . Cannon 653 | . . . . . . . . . . . . . . . . 8 6 42 . 32 18 4 10 20 92 13 4 72 24 206 102 Launcher 99 | . . . . . 16 . 5 15 . 2 . 2 . . 5 . . . . . . . . 6 10 . . 16 . 13 9 Special 173 | . . . . . . . . . . 7 5 7 2 6 4 25 . 16 7 26 . . 5 . 21 5 10 10 2 3 12 Kinetic 1586 | . 56 28 234 18 201 . 187 115 . 139 31 78 . 159 28 106 4 47 . 32 . 2 10 . 7 . . . . 27 77 Thermal 554 | 25 52 . . . . . . . . . . . . . . 50 3 20 . . 3 2 . 20 90 13 7 66 24 179 . Explosive 6 | . . . . . . . . . . . . . . . . . . . . . . . . 6 . . . . . . . Electromagnetic 146 | . . . . . 16 . 5 15 . 2 . 2 . . 5 3 . . . . 15 . . . 14 . . 22 . 13 34 Robot Hit Streak 35 | 8 9 9 34 3 15 . 8 22 . 14 11 11 1 16 9 18 1 7 4 12 5 4 9 8 17 6 9 7 9 35 9 Robot Miss Streak 9 | 2 9 1 3 4 3 . 4 2 . 3 2 6 1 3 6 2 1 5 2 3 6 . 1 9 3 1 1 8 2 5 6 Penetration Max 1 | . . . . . . . 1 1 . . 1 1 . . . . . . . . . . . . . . . . . . 1 Secondary Targets 33 | . 3 1 1 2 1 . 1 4 . 8 2 3 . 1 . 6 . . . . . . . . . . . . . . . Max Gunslinging Chain 2 | . 1 1 1 1 1 . 1 1 . 2 1 1 . 1 . 1 . . . . . . . . . . . . . . . Shots Hit Robots 1604 | 17 61 21 174 6 146 . 119 80 . 109 25 69 2 123 16 134 1 37 5 39 9 17 9 9 92 4 12 42 15 148 63 Core Hits 656 | 5 35 14 57 4 46 . 54 42 . 39 15 23 1 25 8 69 1 16 . 8 6 11 3 23 28 . 2 35 5 57 24 Critical Kills 12 | . . . 1 . . . 1 . . 2 1 . . . . 2 . 1 . . 1 . . . 1 . . . . 2 . Critical Parts Destroyed 3 | . 1 . 1 . . . 1 . . . . . . . . . . . . . . . . . . . . . . . . Critical Strikes 32 | . 3 . 2 . . . 2 . . 2 1 . . 1 . 3 . 3 . 1 2 . 1 . 1 . . . . 3 7 Burn 2 | . 2 . . . . . . . . . . . . . . . . . . . . . . . . . . . . . . Meltdown 5 | . . . . . . . . . . . . . . . . . . 1 . . 1 . . . 1 . . . . 2 . Destroy 11 | . 1 . 2 . . . 2 . . 2 1 . . 1 . 2 . . . . . . . . . . . . . . . Blast 11 | . . . . . . . . . . . . . . . . . . 2 . 1 . . 1 . . . . . . 1 6 Corrupt 3 | . . . . . . . . . . . . . . . . 1 . . . . 1 . . . . . . . . . 1 Melee Attacks 132 | . . . . . 6 3 3 19 . 33 8 19 1 5 . 11 . 3 . . . 13 . . 8 . . . . . . Impact . | . . . . . . . . . . . . . . . . . . . . . . . . . . . . . . . . Slashing 124 | . . . . . 6 3 3 16 . 28 8 19 1 5 . 11 . 3 . . . 13 . . 8 . . . . . . Piercing . | . . . . . . . . . . . . . . . . . . . . . . . . . . . . . . . . Sneak Attacks 21 | . . . . . . . . 3 . 1 . . 1 5 . . . . . . . 11 . . . . . . . . . Combat Hostiles 5 | . . . . . . . . . . . . . . 5 . . . . . . . . . . . . . . . . . Follow-up Attacks . | . . . . . . . . . . . . . . . . . . . . . . . . . . . . . . . . Damage Inflicted 43215 | 190 697 337 2279 89 2679 . 2337 1942 . 1802 565 2144 103 2279 428 2123 31 1149 12 1330 354 1506 405 1044 3143 . 173 2824 409 7016 3825 Guns 16795 | 190 666 303 2249 86 2052 . 2024 1373 . 1642 565 1052 . 2059 299 1902 . 140 . . . . . . 103 . 90 . . . . Cannons 17285 | . . . . . . . . . . . . . . . . 184 31 1009 . 1260 354 197 393 160 2248 . 83 1599 395 6006 3366 Explosions 5165 | . . . . . 53 . 213 493 . 52 . 115 . . 129 . . . . . . . . 861 576 . . 1225 . 1010 438 Melee 3619 | . . . . . 574 . . 76 . 108 . 977 103 220 . 36 . . . . . 1309 . . 216 . . . . . . Ramming 351 | . 31 34 30 3 . . 100 . . . . . . . . 1 . . 12 70 . . 12 23 . . . . 14 . 21 Kinetic 21560 | . 251 303 2249 86 2052 . 2024 1373 . 1642 565 1052 . 2059 299 1263 . 896 . 1260 . 135 393 . 85 . . . . 1000 2573 Thermal 11476 | 190 415 . . . . . . . . . . 50 . . . 717 31 253 . . 32 62 . 160 2161 . 173 1704 395 5133 . Explosive 861 | . . . . . . . . . . . . . . . . . . . . . . . . 861 . . . . . . . Electromagnetic 5348 | . . . . . 53 . 213 493 . 52 . 65 . . 129 106 . . . . 322 . . . 681 . . 1120 . 883 1231 Impact . | . . . . . . . . . . . . . . . . . . . . . . . . . . . . . . . . Slashing 3619 | . . . . . 574 . . 76 . 108 . 977 103 220 . 36 . . . . . 1309 . . 216 . . . . . . Piercing . | . . . . . . . . . . . . . . . . . . . . . . . . . . . . . . . . Highest Corruption 24 | . . . . . 1 . 3 5 5 7 7 10 . 23 23 24 . . . . . 4 10 . 15 . 8 11 . 3 17 Average Corruption 10 | . . . . . 1 . 2 4 5 6 7 9 . 19 23 23 . . . . . 3 3 . 12 . 8 8 . 2 4 Corruption Purged 5 | . . . . . 1 . . . . . . . . . . . . . . . . 4 . . . . . . . . . Corruption Blocked . | . . . . . . . . . . . . . . . . . . . . . . . . . . . . . . . . Effects 683 | . . . . . 1 . 43 55 2 88 13 55 . 59 34 171 . . . . . . 14 . 69 . 9 36 . 28 6 Message Errors 168 | . . . . . . . 12 12 . 27 6 11 . 9 9 42 . . . . . . 4 . 21 . 4 7 . 3 1 Matter Fused 158 | . . . . . . . 7 11 1 25 2 8 . 11 12 49 . . . . . . 1 . 12 . . 8 . 7 4 Heat Flow Errors 77 | . . . . . . . 4 8 . 5 2 12 . 7 3 18 . . . . . . 2 . 5 . 1 6 . 4 . Energy Discharges 71 | . . . . . . . 4 6 . 10 . 8 . 3 3 17 . . . . . . 3 . 9 . 2 1 . 5 . Parts Rejected 6 | . . . . . . . 1 . . . . . . 2 . . . . . . . . . . 1 . . 1 . 1 . Parts Fused 5 | . . . . . . . . . . 3 . . . . . . . . . . . . . . 1 . . 1 . . . Data Loss (minor) 81 | . . . . . . . 9 7 1 7 2 9 . 8 3 18 . . . . . . 1 . 8 . 1 4 . 2 1 Data Loss (major) 32 | . . . . . . . 2 6 . 1 . 2 . 4 . 6 . . . . . . 3 . 3 . . 3 . 2 . Misfires 37 | . . . . . . . 2 5 . 6 1 2 . 6 1 9 . . . . . . . . 3 . 1 1 . . . Alerts 18 | . . . . . 1 . . . . 4 . 1 . 2 . 4 . . . . . . . . 3 . . 1 . 2 . Misdirections 4 | . . . . . . . . . . . . . . 1 . 1 . . . . . . . . 2 . . . . . . Weapon Failures 26 | . . . . . . . 2 . . . . 2 . 6 3 7 . . . . . . . . 1 . . 3 . 2 . Overload Shots . | . . . . . . . . . . . . . . . . . . . . . . . . . . . . . . . . Overflow Damage 1280 | . . . . . 62 . 7 36 . 70 . 65 . . . . . 97 . 101 . 154 . . 103 . . 196 . 209 180 Projectiles 720 | . . . . . . . . . . . . . . . . . . 97 . 101 . . . . 103 . . 114 . 125 180 Explosions 172 | . . . . . . . 6 . . . . . . . . . . . . . . . . . . . . 82 . 84 . Melee 388 | . . . . . 62 . 1 36 . 70 . 65 . . . . . . . . . 154 . . . . . . . . . Knockbacks 34 | . . 2 1 . . . . . . . . . . . . . . 2 . 5 . . 2 . 1 . . . . 10 11 Impact 5 | . . 2 1 . . . . . . . . . . . . . . . . 2 . . . . . . . . . . . Kinetic 25 | . . . . . . . . . . . . . . . . . . 1 . 2 . . 2 . 1 . . . . 10 9 Secondary 4 | . . . . . . . . . . . . . . . . . . 1 . 1 . . . . . . . . . . 2 Self-Inflicted Damage 335 | . . . . . . . . 9 . 11 . . . . . . . . . . . . . 94 1 . . . . 165 55 Shots 14 | . . . . . . . . 1 . 1 . . . . . . . . . . . . . 3 1 . . . . 5 3 Rammed 35 | . 8 6 2 1 . . 10 . . . . . . . . 1 . . 1 2 . . 1 2 . . . . . . 1 Targets Rammed 41 | . 9 7 3 1 . . 12 . . . . . . . . 1 . . 1 2 . . 1 2 . . . . 1 . 1 Kicked . | . . . . . . . . . . . . . . . . . . . . . . . . . . . . . . . . Crushed 6 | . 1 1 1 . . . 2 . . . . . . . . . . . . . . . . . . . . . 1 . . Highest Temperature 600 | . 199 50 171 . 36 . 385 321 . 269 224 305 . 556 176 406 84 400 . 97 27 54 242 298 383 120 234 600 . 449 153 Average Temperature 90 | . 53 25 45 . 7 . 102 91 . 80 80 74 . 137 75 112 34 116 . 28 15 28 83 126 114 42 79 169 . 140 61 Received Heat Transfer 3769 | . 141 162 224 . . . 284 221 . 441 63 120 . . 24 366 9 78 . 120 22 27 18 246 170 . 18 521 . 234 260 Effects 27 | . . . . . . . 1 . . . . . . 11 . 3 . 1 . . . . 1 . 2 . . 5 . 3 . Shutdowns 8 | . . . . . . . . . . . . . . 3 . . . 1 . . . . . . 1 . . 1 . 2 . Energy Bleed 5 | . . . . . . . . . . . . . . . . . . . . . . . 1 . 1 . . 2 . 1 . Interference 5 | . . . . . . . 1 . . . . . . 1 . 3 . . . . . . . . . . . . . . . Short Circuit 1 | . . . . . . . . . . . . . . 1 . . . . . . . . . . . . . . . . . Damage (major) 8 | . . . . . . . . . . . . . . 6 . . . . . . . . . . . . . 2 . . . Siege Activations 7 | . . . . . . . . . . . . . . . . . . . . 1 . . . . 1 . . 1 . 4 . Total Turns 132 | . . . . . . . . . . . . . . . . . . . . 13 . . . . 28 . . 18 . 73 . Longest Duration 34 | . . . . . . . . . . . . . . . . . . . . 13 . . . . 28 . . 18 . 34 . Martial Activations . | . . . . . . . . . . . . . . . . . . . . . . . . . . . . . . . . Shielding Activations . | . . . . . . . . . . . . . . . . . . . . . . . . . . . . . . . . Robots Disrupted 1 | . . . . . . . . . . . . . . . . . . . . . . . . . . . . . . 1 . Combat Hostiles 1 | . . . . . . . . . . . . . . . . . . . . . . . . . . . . . . 1 . Robots Corrupted 27 | . . . . . . . 1 1 . . . . . . 1 . . . . . 2 . . . 5 . . 5 . 3 9 Combat Hostiles 26 | . . . . . . . . 1 . . . . . . 1 . . . . . 2 . . . 5 . . 5 . 3 9 Parts Fried 41 | . . . . . . . 2 3 . . . . . . . . . . . . 1 . . . 6 . . 9 . 7 13 Impact Corruptions 1 | . . . . . . . 1 . . . . . . . . . . . . . . . . . . . . . . . . Robots Melted 7 | . . . . . . . . . . . . . . . . . . 1 . . 1 . . . 3 . . . . 2 . Combat Hostiles 5 | . . . . . . . . . . . . . . . . . . 1 . . . . . . 3 . . . . 1 . Parts Melted 36 | . 1 . . . . . . . . . . 1 . . . 3 . 3 . . 2 1 . . 10 . . 4 2 9 . Heat Transferred 13126 | 425 1117 . . . . . . . . . . 50 . . . 1554 50 324 . . 25 100 . 250 2634 . 185 1432 220 4760 . Parts Sabotaged . | . . . . . . . . . . . . . . . . . . . . . . . . . . . . . . . . Parts Stolen . | . . . . . . . . . . . . . . . . . . . . . . . . . . . . . . . . Parts Stripped . | . . . . . . . . . . . . . . . . . . . . . . . . . . . . . . . . Power Chain Reactions 7 | . . . . . . . . 1 . . . 2 . . . . . . . . . . . . . . . . . 4 . Alert | -11 -10 -10 -9 -9 -9 -8 -8 -8 -8 -8 -8 -8 -7 -7 -7 -7 -6 -6 -6 -6 -6 -6 -6 -5 -5 -4 -4 -4 -3 -3 -2 ------- Run | Yrd Mat Min Mat Min Exi Min Mat Gar Mat Gar Mat Gar Fac Was Fac Gar Fac Gar Fac Ext Cet Arc Hub Fac Gar Fac Was Fac Res Gar Res Maximum Alert Level 5 | . . . 1 . . . 1 4 2 5 3 4 3 1 . 4 3 3 2 1 . . 1 . 3 1 . . . 2 1 Low Security (%) 49 | 100 100 100 96 100 . 100 58 1 . . . . . 95 100 12 . . . 92 100 100 91 100 3 . 100 100 100 15 71 Level 1 12 | . . . 3 . . . 41 14 . . . . . 4 . 11 . . 68 7 . . 8 . 36 100 . . . 46 28 Level 2 13 | . . . . . . . . 31 100 17 . 7 83 . . 21 41 39 31 . . . . . 48 . . . . 37 . Level 3 14 | . . . . . . . . 35 . 25 99 59 16 . . 20 58 60 . . . . . . 11 . . . . . . Level 4 9 | . . . . . . . . 17 . 42 . 33 . . . 34 . . . . . . . . . . . . . . . Level 5 1 | . . . . . . . . . . 14 . . . . . . . . . . . . . . . . . . . . . High Security . | . . . . . . . . . . . . . . . . . . . . . . . . . . . . . . . . Max Security . | . . . . . . . . . . . . . . . . . . . . . . . . . . . . . . . . Peak Influence 2000 | 15 185 50 210 100 . 1 306 1417 690 2000 978 1349 707 228 129 1528 802 916 466 222 112 56 228 174 702 368 90 128 23 512 288 Initial 975 | . . . . 85 . . . 190 690 435 975 617 707 228 . 63 802 436 466 123 84 3 . 43 100 368 90 . 12 9 288 Average 397 | 2 61 5 72 10 . . 154 765 681 1147 838 1058 682 38 9 818 713 712 359 110 23 9 106 54 468 302 43 61 2 291 150 Influence Increases 13340 | 20 518 155 737 100 . 3 743 1277 . 1585 361 812 5 . 230 1735 39 582 . 771 225 148 514 303 772 80 8 408 47 693 469 Destroy 0b10 Robot/C 6148 | . 360 120 480 60 . . 460 460 . 460 220 440 . . 140 644 24 288 . 300 96 48 216 120 384 . . 228 12 336 252 Destroy 0b10 Robot/NC 292 | 20 15 5 35 . . . 50 5 . 5 15 10 5 . 10 . . . . 18 6 27 12 3 . . . 9 3 18 21 Destroy Leader 938 | . 84 30 136 10 . . 132 40 . 40 50 50 . . 40 28 . 24 . 42 . . 62 24 30 . . 36 6 30 44 Allied During Kill 884 | . . . . . . . . . . 5 3 64 . . 7 44 1 77 . 275 102 73 120 . 68 . . . 3 23 19 Trap Triggered on 0b10 20 | . . . . . . . . . . . 20 . . . . . . . . . . . . . . . . . . . . Successful Hack 275 | . 29 . 10 . . . 37 14 . . . 21 . . 18 6 2 . . 50 6 . 8 31 18 9 . 8 . 8 . Select Force Hacks 48 | . . . . . . . . . . . . . . . . . . . . . . . 30 . . 18 . . . . . Disable Machine 294 | . . . . 30 . . 15 15 . 75 . . . . 15 . 9 . . 36 . . 27 . . . . 36 9 . 27 Anti-Garrison Action 3387 | . . . . . . . . 700 . 950 . 200 . . . 967 . 180 . . . . . . 210 . . . . 180 . Destroy Structure 643 | . . . 1 . . 3 4 43 . 20 8 12 . . . 10 3 13 . 23 15 . 39 116 44 26 8 82 14 89 70 Lose Combat Pursuer 411 | . 30 . 75 . . . 45 . . 30 45 15 . . . 36 . . . 27 . . . 9 18 27 . 9 . 9 36 Influence Decreases 13301 | 20 518 155 518 319 . 3 450 153 747 255 1411 413 702 652 139 298 944 317 636 871 368 157 425 249 213 524 266 384 59 193 942 Entered New Map 6019 | . . . . 134 . . . 103 727 235 1025 333 642 424 . 28 726 187 422 129 68 6 . 46 43 334 168 . 12 3 224 Time Decay 5145 | 20 518 155 508 185 . 3 430 . 20 . 206 . 60 208 109 . 198 . 214 542 145 111 297 183 . 120 84 324 47 . 458 Lost Part 540 | . . . 10 . . . 20 50 . . 10 20 . . . 30 . . . . . . 20 20 50 . . 40 . 130 140 Lost Ally 1447 | . . . . . . . . . . 20 20 60 . 20 30 240 20 130 . 200 155 40 108 . 120 70 14 20 . 60 120 Purge Threat 150 | . . . . . . . . . . . 150 . . . . . . . . . . . . . . . . . . . . Squads Dispatched 49 | . 4 . 3 . . . 2 . . . 2 . . . 5 . 1 . 1 3 . . 8 3 . 3 . 3 4 . 7 Investigation 7 | . . . 1 . . . . . . . . . . . . . . . . . . . 1 . . 1 . . 3 . 1 Extermination 9 | . . . . . . . . . . . . . . . 1 . . . 1 . . . 1 . . 1 . 2 . . 3 Reinforcement 28 | . 4 . 2 . . . 2 . . . . . . . 2 . . . . 3 . . 6 3 . 1 . 1 1 . 3 Assault 2 | . . . . . . . . . . . 1 . . . . . 1 . . . . . . . . . . . . . . Garrison 3 | . . . . . . . . . . . 1 . . . 2 . . . . . . . . . . . . . . . . Intercept . | . . . . . . . . . . . . . . . . . . . . . . . . . . . . . . . . Searches Triggered . | . . . . . . . . . . . . . . . . . . . . . . . . . . . . . . . . Unchained Authorized 3 | . . . . . . . . . . . . . . . . . . . . . . . . . . 1 . 1 . . 1 Construction Impeded 7 | . . . . . . . 1 . . . . . . . 1 . . . . 2 . . 1 . . . . 1 . . 1 Haulers Reinforced . | . . . . . . . . . . . . . . . . . . . . . . . . . . . . . . . . Active Scanning Responses . | . . . . . . . . . . . . . . . . . . . . . . . . . . . . . . . . Cargo Convoy Interrupts . | . . . . . . . . . . . . . . . . . . . . . . . . . . . . . . . . Alert ID Control Effect 11 | . . . . . . . . . . . . . . . . . . . . . . . . . 2 4 . . . . 5 Stealth | -11 -10 -10 -9 -9 -9 -8 -8 -8 -8 -8 -8 -8 -7 -7 -7 -7 -6 -6 -6 -6 -6 -6 -6 -5 -5 -4 -4 -4 -3 -3 -2 --------- Run | Yrd Mat Min Mat Min Exi Min Mat Gar Mat Gar Mat Gar Fac Was Fac Gar Fac Gar Fac Ext Cet Arc Hub Fac Gar Fac Was Fac Res Gar Res Distress Signals 35 | . 3 . 6 . . . 6 . . . 2 . . . 1 1 . . . 3 2 . 5 . . . . 2 1 . 3 Communications Jammed . | . . . . . . . . . . . . . . . . . . . . . . . . . . . . . . . . Distress Signals . | . . . . . . . . . . . . . . . . . . . . . . . . . . . . . . . . Times Spotted 632 | . 43 6 49 5 32 . 43 23 . 28 17 25 . 2 13 47 2 31 1 29 7 8 18 17 49 10 5 36 7 32 47 Peak Tracking Total 10 | . 6 2 7 3 9 . 5 3 . 4 9 7 . 2 6 7 2 5 1 6 5 2 5 8 7 4 3 6 2 10 7 Tactical Retreats 31 | . 2 . 5 . 6 . 3 . . 1 1 1 . . . 1 . . . 2 . . . 1 2 1 . 1 . 1 3 Traps | -11 -10 -10 -9 -9 -9 -8 -8 -8 -8 -8 -8 -8 -7 -7 -7 -7 -6 -6 -6 -6 -6 -6 -6 -5 -5 -4 -4 -4 -3 -3 -2 ------- Run | Yrd Mat Min Mat Min Exi Min Mat Gar Mat Gar Mat Gar Fac Was Fac Gar Fac Gar Fac Ext Cet Arc Hub Fac Gar Fac Was Fac Res Gar Res Traps Triggered 49 | . 1 . 4 . . . 2 2 . 8 . 7 1 . . 9 . 6 . . . . 1 . 3 1 . 1 . . 3 Indirectly 2 | . . . . . . . . . . . . . . . . . . . . . . . . . 2 . . . . . . Trap Hack Attempts . | . . . . . . . . . . . . . . . . . . . . . . . . . . . . . . . . Triggered . | . . . . . . . . . . . . . . . . . . . . . . . . . . . . . . . . Disarmed . | . . . . . . . . . . . . . . . . . . . . . . . . . . . . . . . . Reprogrammed 3 | . . . . . . . . . . . 3 . . . . . . . . . . . . . . . . . . . . Reused 2 | . . . . . . . . . . . 2 . . . . . . . . . . . . . . . . . . . . Traps Extracted . | . . . . . . . . . . . . . . . . . . . . . . . . . . . . . . . . Installed . | . . . . . . . . . . . . . . . . . . . . . . . . . . . . . . . . Triggered 2 | . . . . . . . . . . . 2 . . . . . . . . . . . . . . . . . . . . Most Traps Carried 4 | . . . . 1 1 . . 4 4 4 4 4 4 4 4 4 4 4 4 4 4 4 4 4 4 4 4 . . . . Machines | -11 -10 -10 -9 -9 -9 -8 -8 -8 -8 -8 -8 -8 -7 -7 -7 -7 -6 -6 -6 -6 -6 -6 -6 -5 -5 -4 -4 -4 -3 -3 -2 ---------- Run | Yrd Mat Min Mat Min Exi Min Mat Gar Mat Gar Mat Gar Fac Was Fac Gar Fac Gar Fac Ext Cet Arc Hub Fac Gar Fac Was Fac Res Gar Res Machines Disabled 70 | . . . . 2 6 . 1 5 . 10 . 2 . . 1 9 1 6 . 6 1 . 3 . 6 . . 4 1 3 3 Max in Single Turn 2 | . . . . 2 1 . 1 1 . 1 . 1 . . 1 1 1 1 . 1 . . 1 . 1 . . 2 1 1 1 Garrison Access 2 | . . . . . . . . . . . . . . . . . . . . . . . . . . 1 . . . . 1 Garrison Relay 29 | . . . . . . . . 4 . 5 . 2 . . . 9 . 4 . . . . . . 3 . . . . 2 . Network Hub 1 | . . . . . . . . . . . . . . . . . . . . . . . 1 . . . . . . . . Machines Repaired . | . . . . . . . . . . . . . . . . . . . . . . . . . . . . . . . . Machines Dismantled . | . . . . . . . . . . . . . . . . . . . . . . . . . . . . . . . . Machines Sabotaged 1 | . . . . . . . . . . . . . . . . . . . . . . . 1 . . . . . . . . Overloaded Fab Kills . | . . . . . . . . . . . . . . . . . . . . . . . . . . . . . . . . Hacking | -11 -10 -10 -9 -9 -9 -8 -8 -8 -8 -8 -8 -8 -7 -7 -7 -7 -6 -6 -6 -6 -6 -6 -6 -5 -5 -4 -4 -4 -3 -3 -2 --------- Run | Yrd Mat Min Mat Min Exi Min Mat Gar Mat Gar Mat Gar Fac Was Fac Gar Fac Gar Fac Ext Cet Arc Hub Fac Gar Fac Was Fac Res Gar Res Machines Accessed 99 | . 8 . 12 . 2 . 12 3 1 2 4 3 1 . 2 1 2 2 2 16 1 . 4 4 2 4 . 3 5 1 2 Terminals 66 | . 5 . 6 . . . 7 3 . 2 3 3 1 . 1 1 . 2 2 16 1 . 4 3 2 1 . 1 1 1 . Fabricators 2 | . . . . . . . . . . . . . . . . . . . . . . . . . . 1 . . . . 1 Repair Stations 7 | . 1 . 2 . . . 2 . . . . . . . . . 1 . . . . . . . . . . 1 . . . Recycling Units 9 | . 2 . 2 . . . 1 . . . . . . . . . . . . . . . . . . 1 . 1 2 . . Scanalyzers 4 | . . . 2 . . . 1 . . . . . . . . . . . . . . . . . . . . . 1 . . Garrison Access 9 | . . . . . . . 1 . 1 . 1 . . . 1 . 1 . . . . . . 1 . 1 . . 1 . 1 Total Hacks 235 | . 20 . 34 . 2 . 30 5 1 4 8 5 2 . 2 2 3 2 4 35 1 . 8 26 10 5 . 8 12 4 2 Successful 105 | . 9 . 19 . 2 . 16 2 1 . 4 2 . . 2 1 3 1 1 13 1 . 3 13 3 3 . 1 3 1 1 Failed 129 | . 11 . 14 . . . 14 3 . 4 4 3 2 . . 1 . 1 3 22 . . 5 13 7 2 . 7 9 3 1 Catastrophic 27 | . 1 . 2 . . . 2 1 . 1 1 . . . . . . . 1 7 . . . 4 1 . . 4 2 . . Database Lockouts 1 | . . . 1 . . . . . . . . . . . . . . . . . . . . . . . . . . . . Manual 101 | . 14 . 20 . 1 . 17 2 . . 5 . . . . . . . . 6 1 . 6 20 1 4 . 3 1 . . Terminals 175 | . 14 . 18 . . . 20 5 . 4 7 5 2 . 1 2 . 2 4 35 1 . 8 25 10 2 . 3 3 4 . Fabricators 2 | . . . . . . . . . . . . . . . . . . . . . . . . . . 1 . . . . 1 Repair Stations 20 | . 4 . 6 . . . 4 . . . . . . . . . 2 . . . . . . . . . . 4 . . . Recycling Units 16 | . 2 . 4 . . . 2 . . . . . . . . . . . . . . . . . . 1 . 1 6 . . Scanalyzers 11 | . . . 6 . . . 3 . . . . . . . . . . . . . . . . . . . . . 2 . . Garrison Access 9 | . . . . . . . 1 . 1 . 1 . . . 1 . 1 . . . . . . 1 . 1 . . 1 . 1 Terminal Hacks 43 | . 1 . . . 2 . 3 1 . . 3 2 . . 1 1 . 1 1 11 1 . 2 10 2 . . . . 1 . Record 2 | . . . . . 1 . . . . . . . . . . . . . . 1 . . . . . . . . . . . Part Schematic 1 | . 1 . . . . . . . . . . . . . . . . . . . . . . . . . . . . . . Robot Schematic 1 | . . . . . . . . . . . . . . . . . . . . 1 . . . . . . . . . . . Open Door 12 | . . . . . . . . . . . . 1 . . . 1 . . 1 8 1 . . . . . . . . . . Level Access Points 1 | . . . . . . . . . . . . . . . . . . . . . . . 1 . . . . . . . . Branch Access Points 2 | . . . . . . . 1 . . . . . . . . . . . . . . . . 1 . . . . . . . Emergency Access Points 2 | . . . . . . . . . . . . . . . . . . . . . . . . . 1 . . . . 1 . Terminal Index 1 | . . . . . . . . . . . . . . . . . . . . . . . . 1 . . . . . . . Repair Station Index 1 | . . . . . . . . . . . . . . . . . . . . . . . . 1 . . . . . . . Garrison Index 1 | . . . . . . . . . . . . . . . . . . . . . . . . 1 . . . . . . . Unreport Threat 1 | . . . . . . . . . . . 1 . . . . . . . . . . . . . . . . . . . . Locate Traps 5 | . . . . . . . 2 . . . 1 . . . . . . . . . . . 1 1 . . . . . . . Reprogram Traps 1 | . . . . . . . . . . . 1 . . . . . . . . . . . . . . . . . . . . Maintenance Status 1 | . . . . . . . . . . . . . . . . . . . . . . . . 1 . . . . . . . Patrol Status 3 | . . . . . . . . . . . . . . . 1 . . . . 1 . . . 1 . . . . . . . Hauler Manifests 1 | . . . . . . . . . . . . . . . . . . . . . . . . 1 . . . . . . . Registered Components 1 | . . . . . . . . . . . . . . . . . . . . . . . . 1 . . . . . . . Zone Layout 1 | . . . . . . . . . . . . . . . . . . . . . . . . 1 . . . . . . . Garrison Registry 4 | . . . . . . . . 1 . . . 1 . . . . . 1 . . . . . . 1 . . . . . . Proto ID Catalog 1 | . . . . . 1 . . . . . . . . . . . . . . . . . . . . . . . . . . Fabricator Hacks . | . . . . . . . . . . . . . . . . . . . . . . . . . . . . . . . . Repair Station Hacks 14 | . 4 . 4 . . . 3 . . . . . . . . . 2 . . . . . . . . . . 1 . . . Scan Component 8 | . 2 . 2 . . . 2 . . . . . . . . . 1 . . . . . . . . . . 1 . . . Repair 6 | . 2 . 2 . . . 1 . . . . . . . . . 1 . . . . . . . . . . . . . . Recycling Unit Hacks 5 | . 1 . 2 . . . . . . . . . . . . . . . . . . . . . . . . . 2 . . Retrieve Components 5 | . 1 . 2 . . . . . . . . . . . . . . . . . . . . . . . . . 2 . . Scanalyzer 6 | . . . 3 . . . 3 . . . . . . . . . . . . . . . . . . . . . . . . Insert Component 1 | . . . . . . . 1 . . . . . . . . . . . . . . . . . . . . . . . . Analyze 1 | . . . . . . . 1 . . . . . . . . . . . . . . . . . . . . . . . . Retrieve Study 4 | . . . 3 . . . 1 . . . . . . . . . . . . . . . . . . . . . . . . Garrison Access Hacks 9 | . . . . . . . 1 . 1 . 1 . . . 1 . 1 . . . . . . 1 . 1 . . 1 . 1 Unlock Access 7 | . . . . . . . 1 . 1 . 1 . . . 1 . 1 . . . . . . 1 . . . . 1 . . Seal Access 2 | . . . . . . . . . . . . . . . . . . . . . . . . . . 1 . . . . 1 Unauthorized Hacks 28 | . 3 . 10 . . . 6 1 . . . . . . . . . . . 2 . . 1 2 1 2 . . . . . Terminals 25 | . 3 . 8 . . . 6 1 . . . . . . . . . . . 2 . . 1 2 1 1 . . . . . Assimilate 2 | . 1 . 1 . . . . . . . . . . . . . . . . . . . . . . . . . . . . Botnet 9 | . . . 2 . . . 2 1 . . . . . . . . . . . 1 . . . 1 1 1 . . . . . Skim 13 | . 2 . 5 . . . 4 . . . . . . . . . . . . 1 . . . 1 . . . . . . . Sabotage 1 | . . . . . . . . . . . . . . . . . . . . . . . 1 . . . . . . . . Fabricators . | . . . . . . . . . . . . . . . . . . . . . . . . . . . . . . . . Repair Stations . | . . . . . . . . . . . . . . . . . . . . . . . . . . . . . . . . Recycling Units 3 | . . . 2 . . . . . . . . . . . . . . . . . . . . . . 1 . . . . . Reject 2 | . . . 2 . . . . . . . . . . . . . . . . . . . . . . . . . . . . Tunnel 1 | . . . . . . . . . . . . . . . . . . . . . . . . . . 1 . . . . . Scanalyzers . | . . . . . . . . . . . . . . . . . . . . . . . . . . . . . . . . Garrison Access . | . . . . . . . . . . . . . . . . . . . . . . . . . . . . . . . . Data Cores Recovered 2 | . . . 1 . . . . . . . . . . . . . . . . 1 . . . . . . . . . . . Used 1 | . . . . . . . . . . . . . . . . . . . . 1 . . . . . . . . . . . Hacking Detections 74 | . 7 . 9 . . . 11 2 1 2 3 2 1 . 1 1 . 2 2 11 1 . 3 3 1 2 . 3 4 1 1 Full Trace Events 1 | . . . . . . . . . . . . . . . . . . . . . . . . . . . . . 1 . . Feedback Events . | . . . . . . . . . . . . . . . . . . . . . . . . . . . . . . . . Feedback Blocked . | . . . . . . . . . . . . . . . . . . . . . . . . . . . . . . . . Robot Schematics Acquired 1 | . . . . . . . . . . . . . . . . . . . . 1 . . . . . . . . . . . Robots Built . | . . . . . . . . . . . . . . . . . . . . . . . . . . . . . . . . Authchips . | . . . . . . . . . . . . . . . . . . . . . . . . . . . . . . . . Time . | . . . . . . . . . . . . . . . . . . . . . . . . . . . . . . . . Total Robot Build Rating . | . . . . . . . . . . . . . . . . . . . . . . . . . . . . . . . . Part Schematics Acquired 1 | . 1 . . . . . . . . . . . . . . . . . . . . . . . . . . . . . . Parts Built . | . . . . . . . . . . . . . . . . . . . . . . . . . . . . . . . . Authchips . | . . . . . . . . . . . . . . . . . . . . . . . . . . . . . . . . Time . | . . . . . . . . . . . . . . . . . . . . . . . . . . . . . . . . Total Part Build Rating . | . . . . . . . . . . . . . . . . . . . . . . . . . . . . . . . . Part Studies Acquired 4 | . . . 3 . . . 1 . . . . . . . . . . . . . . . . . . . . . . . . Parts Repaired 6 | . 2 . 2 . . . 1 . . . . . . . . . 1 . . . . . . . . . . . . . . Time 243 | . 52 . 102 . . . 51 . . . . . . . . . 38 . . . . . . . . . . . . . . Parts Recycled . | . . . . . . . . . . . . . . . . . . . . . . . . . . . . . . . . Recycled Matter . | . . . . . . . . . . . . . . . . . . . . . . . . . . . . . . . . Retrieved Matter . | . . . . . . . . . . . . . . . . . . . . . . . . . . . . . . . . Retrieved Components 23 | . 2 . 18 . . . . . . . . . . . . . . . . . . . . . . . . . 3 . . Parts Scanalyzed 1 | . . . . . . . 1 . . . . . . . . . . . . . . . . . . . . . . . . Part Schematics Acquired . | . . . . . . . . . . . . . . . . . . . . . . . . . . . . . . . . Parts Damaged . | . . . . . . . . . . . . . . . . . . . . . . . . . . . . . . . . Bothacking | -11 -10 -10 -9 -9 -9 -8 -8 -8 -8 -8 -8 -8 -7 -7 -7 -7 -6 -6 -6 -6 -6 -6 -6 -5 -5 -4 -4 -4 -3 -3 -2 ------------ Run | Yrd Mat Min Mat Min Exi Min Mat Gar Mat Gar Mat Gar Fac Was Fac Gar Fac Gar Fac Ext Cet Arc Hub Fac Gar Fac Was Fac Res Gar Res Used RIF Installer 9 | . . . . . . . . 1 . 1 . 2 . . . 2 . 1 . . . . . . 2 . . . . . . Code Merge 1 | . . . . . . . . . . . . 1 . . . . . . . . . . . . . . . . . . . Threat Obfuscator 2 | . . . . . . . . . . . . . . . . 2 . . . . . . . . . . . . . . . Robot Detection 1 | . . . . . . . . . . . . . . . . . . 1 . . . . . . . . . . . . . Patrol Navigation 1 | . . . . . . . . . . 1 . . . . . . . . . . . . . . . . . . . . . Alert ID Control 1 | . . . . . . . . . . . . . . . . . . . . . . . . . 1 . . . . . . Structural Interface 1 | . . . . . . . . . . . . 1 . . . . . . . . . . . . . . . . . . . Autoassimilate 1 | . . . . . . . . . . . . . . . . . . . . . . . . . 1 . . . . . . Robots Hacked 95 | . . . . . . . . 1 . 5 2 4 1 6 3 11 . 9 3 7 . . 3 . 14 5 6 4 2 2 7 Non-combat 17 | . . . . . . . . 1 . 1 . . 1 . 2 . . 1 3 1 . . . . . 2 . 2 . . 3 Combat 78 | . . . . . . . . . . 4 2 4 . 6 1 11 . 8 . 6 . . 3 . 14 3 6 2 2 2 4 Autoassimilated 3 | . . . . . . . . . . . . . . . . . . . . . . . . . . 1 . . . 1 1 Robot Hacks Applied 106 | . . . . . . . . 2 . 7 3 4 1 6 4 14 . 9 3 7 . . 3 . 15 4 9 5 2 1 7 parse_system 11 | . . . . . . . . . . . . . . . . 2 . 1 . 1 . . . . 1 . 3 1 1 1 . no_distress 1 | . . . . . . . . . . . . . . . . . . . . . . . . . . . . . . . 1 find_chute 2 | . . . . . . . . . . . . . 1 . . . . . . . . . . . . 1 . . . . . drop_inventory 3 | . . . . . . . . . . . . . . . 1 . . . 1 . . . . . . . . 1 . . . map_route 4 | . . . . . . . . . . . . . . . . . . . 1 . . . . . . . . 1 . . 2 ignore_targets 12 | . . . . . . . . . . . . . . 6 . . . . . . . . . . . . 6 . . . . find_garrison 2 | . . . . . . . . . . . 1 . . . 1 . . . . . . . . . . . . . . . . scatter_targeting 1 | . . . . . . . . . . 1 . . . . . . . . . . . . . . . . . . . . . amplify_resonance 9 | . . . . . . . . 1 . . . . . . . 2 . 1 . 1 . . . . 3 . . 1 . . . disable_weapons 1 | . . . . . . . . . . . . . . . . . . . . . . . . . 1 . . . . . . reboot_system 2 | . . . . . . . . . . . . . . . . 1 . 1 . . . . . . . . . . . . . overwrite_iff 12 | . . . . . . . . . . 2 1 . . . . 3 . . . 2 . . 2 . 1 . . . . . 1 formatsys_low 5 | . . . . . . . . 1 . 1 . . . . 1 . . . 1 . . . . . . 1 . . . . . formatsys_high 40 | . . . . . . . . . . 3 1 4 . . 1 6 . 5 . 3 . . 1 . 9 2 . 1 1 . 3 formatsys_deep 1 | . . . . . . . . . . . . . . . . . . 1 . . . . . . . . . . . . . Relay Couplers Released 117 | . . . . . . . . 15 . 18 . 10 . . . 33 . 19 . . . . . . 14 . . . . 8 . Machine Destruction 117 | . . . . . . . . 15 . 18 . 10 . . . 33 . 19 . . . . . . 14 . . . . 8 . Attached 38 | . . . . . . . . 1 . 5 1 2 . 1 2 7 . 3 . 3 . . 1 . 8 1 . 1 . 1 1 Merged Code Value 201 | . . . . . . . . . . . . . . . . 86 . 6 . . . . . . 71 . . . . 38 . Fabnet Peak Effective % . | . . . . . . . . . . . . . . . . . . . . . . . . . . . . . . . . Robots Rewired 18 | . . . . . . . . . . . . 2 . . . 4 . . . 11 . . . . . . . . . 1 . Allies Hacked 6 | . . . . . . . . . . . . 1 . . . . . . . . . . . . 2 . . . . 1 2 Hacks Repelled . | . . . . . . . . . . . . . . . . . . . . . . . . . . . . . . . . Allies | -11 -10 -10 -9 -9 -9 -8 -8 -8 -8 -8 -8 -8 -7 -7 -7 -7 -6 -6 -6 -6 -6 -6 -6 -5 -5 -4 -4 -4 -3 -3 -2 -------- Run | Yrd Mat Min Mat Min Exi Min Mat Gar Mat Gar Mat Gar Fac Was Fac Gar Fac Gar Fac Ext Cet Arc Hub Fac Gar Fac Was Fac Res Gar Res Total Allies 109 | . . . . 2 . . . 1 . 5 2 6 . . 2 15 . 9 1 32 5 . 3 . 12 4 . 1 1 4 4 Largest Group 21 | . . . . 2 2 . . 1 . 2 3 5 3 3 2 5 1 5 1 21 20 12 10 . 6 9 5 1 1 3 2 Highest-Rated Group 908 | . . . . 48 48 . . 23 . 38 54 114 53 53 55 157 31 137 14 753 908 699 567 . 250 380 213 49 64 224 144 Highest-Rated Ally 159 | . . . . 31 31 . . 23 . 23 23 31 22 22 32 95 31 47 14 159 159 128 96 . 95 56 49 49 64 80 80 Total Orders 107 | . . . . . . . . . . 11 4 25 1 3 1 2 . 3 2 17 3 6 8 . 14 1 . . . 6 . STAY 53 | . . . . . . . . . . 4 1 10 . 2 . 2 . 2 1 8 1 5 4 . 9 . . . . 4 . ROAM 4 | . . . . . . . . . . . . 1 . . . . . 1 . . . . 2 . . . . . . . . FOLLOW 29 | . . . . . . . . . . 4 1 8 . 1 . . . . . 5 1 . 2 . 5 . . . . 2 . AID 21 | . . . . . . . . . . 3 2 6 1 . 1 . . . 1 4 1 1 . . . 1 . . . . . Ally Attacks 857 | . . . . 5 . . . . . 6 10 49 . 50 8 43 4 77 . 172 69 33 103 . 55 17 94 1 9 17 35 Total Damage 23132 | . . . . 42 . . . . . 115 146 908 . 919 336 1399 182 1524 . 3466 1940 901 3276 . 2107 593 3399 23 244 485 1127 Kills 127 | . . . . 1 . . . . . 2 3 10 . 1 4 10 1 9 . 27 7 2 21 . 16 4 4 . . . 5 Allies Corrupted 7 | . . . . . . . . . . . . . . 2 . . . 1 . . . . 2 . . . . . . . 2 Allies Melted 2 | . . . . . . . . . . . . . . . . . . . . . 1 . . . . . . 1 . . . Turrets Deployed 1 | . . . . . . . . . . . . . . . . . . . . 1 . . . . . . . . . . . Intel | -11 -10 -10 -9 -9 -9 -8 -8 -8 -8 -8 -8 -8 -7 -7 -7 -7 -6 -6 -6 -6 -6 -6 -6 -5 -5 -4 -4 -4 -3 -3 -2 ------- Run | Yrd Mat Min Mat Min Exi Min Mat Gar Mat Gar Mat Gar Fac Was Fac Gar Fac Gar Fac Ext Cet Arc Hub Fac Gar Fac Was Fac Res Gar Res Active Infowar (turns) 2986 | . . . 18 . . 287 811 2 . . . 1 . 340 . 1 . . . . . . . . 2 . . 32 654 11 827 Sensors 1523 | . . . . . . . . . . . . . . . . . . . . . . . . . . . . 32 654 11 826 IFF 341 | . . . . . . . . . . . . 1 . 340 . . . . . . . . . . . . . . . . . Terrain 2 | . . . . . . . . 2 . . . . . . . . . . . . . . . . . . . . . . . Seismic 1117 | . . . 18 . . 287 811 . . . . . . . . . . . . . . . . . . . . . . . 1 Cloaking 2 | . . . . . . . . . . . . . . . . . . . . . . . . . 2 . . . . . . Spoofing 1 | . . . . . . . . . . . . . . . . 1 . . . . . . . . . . . . . . . Robot Analysis Total . | . . . . . . . . . . . . . . . . . . . . . . . . . . . . . . . . Derelict Logs Recovered 2 | . . 1 . 1 . . . . . . . . . . . . . . . . . . . . . . . . . . . Drone Launches . | . . . . . . . . . . . . . . . . . . . . . . . . . . . . . . . . Drone Recoveries . | . . . . . . . . . . . . . . . . . . . . . . . . . . . . . . . . Exploration | -11 -10 -10 -9 -9 -9 -8 -8 -8 -8 -8 -8 -8 -7 -7 -7 -7 -6 -6 -6 -6 -6 -6 -6 -5 -5 -4 -4 -4 -3 -3 -2 ------------- Run | Yrd Mat Min Mat Min Exi Min Mat Gar Mat Gar Mat Gar Fac Was Fac Gar Fac Gar Fac Ext Cet Arc Hub Fac Gar Fac Was Fac Res Gar Res Turns Passed 39585 | 149 1694 1345 2255 1910 2995 287 2412 2543 52 2783 424 1726 122 1220 684 3268 407 1541 444 1625 564 645 750 528 2034 258 211 967 654 1935 1153 Spaces Moved 15640 | 54 673 535 921 437 1273 140 908 966 24 901 159 694 77 446 248 1147 145 566 156 837 208 310 432 238 1033 140 107 421 378 563 503 Core 9 | 9 . . . . . . . . . . . . . . . . . . . . . . . . . . . . . . . Treads 15338 | 45 673 535 921 437 1273 140 908 966 24 901 159 672 . 252 248 1147 145 566 156 837 208 310 432 238 1033 140 107 421 378 563 503 Legs . | . . . . . . . . . . . . . . . . . . . . . . . . . . . . . . . . Wheels 293 | . . . . . . . . . . . . 22 77 194 . . . . . . . . . . . . . . . . . Hover . | . . . . . . . . . . . . . . . . . . . . . . . . . . . . . . . . Flight . | . . . . . . . . . . . . . . . . . . . . . . . . . . . . . . . . Fastest Speed 50 | 50 160 240 160 200 160 200 200 216 216 216 216 145 145 145 245 220 240 160 160 160 160 160 160 160 152 152 152 155 155 155 160 Average Speed 199 | 156 209 240 186 200 198 200 209 229 216 262 216 213 145 204 245 229 240 232 200 160 194 160 160 192 155 152 155 155 155 187 161 Slowest Speed 730 | 250 240 240 240 200 213 200 269 269 216 285 216 216 145 730 245 245 240 240 240 160 240 160 160 240 240 158 232 155 155 320 570 Overloaded Moves . | . . . . . . . . . . . . . . . . . . . . . . . . . . . . . . . . Propulsion Burnouts . | . . . . . . . . . . . . . . . . . . . . . . . . . . . . . . . . Robots Hopped 1 | . . . . . . . . . . . . . . . . . . . . 1 . . . . . . . . . . . Potential Cave-ins 2 | . . . . . . . . . . . . . . . . . . . . . . . . . . 2 . . . . . Cave-ins Triggered . | . . . . . . . . . . . . . . . . . . . . . . . . . . . . . . . . Exploration Rate (%) 51 | 3 86 95 82 74 88 30 78 78 5 81 23 72 2 88 9 92 4 76 5 80 66 94 53 9 72 7 87 17 12 50 18 Regions Visited 31 Branch Regions 8 Pre-discovered Areas 5 | . . 1 2 . 1 . . . . . . . . . . . . . . . . . . . . 1 . . . . . Known Exits Taken 11 | . . . 1 . . 1 1 . 1 . 1 . . . 1 . 1 . . . . . 1 1 . . . 1 1 . . Unknown Exits Taken 9 | 1 1 1 . 1 1 . . . . . . . . . . . . . 1 1 1 1 . . . . . . . . . Scrap Searched 3 | . . 1 . 2 . . . . . . . . . . . . . . . . . . . . . . . . . . . Spaces Dug 111 | . . . . . . 3 2 8 . 10 8 1 . . . 3 1 1 . 4 . . 1 23 . 8 . 21 3 9 5 Terrain Destroyed 284 | . . . . . . 3 2 8 . 11 10 2 . . . 3 3 8 . 9 1 . 6 77 4 12 2 40 8 41 34 Melee 34 | . . . . . . 3 2 7 . 10 8 1 . . . 3 . . . . . . . . . . . . . . . Projectile 162 | . . . . . . . . . . 1 2 . . . . . 3 8 . 9 1 . 6 15 4 12 2 23 8 34 34 AOE 88 | . . . . . . . . 1 . . . 1 . . . . . . . . . . . 62 . . . 17 . 7 . Terrain Rammed . | . . . . . . . . . . . . . . . . . . . . . . . . . . . . . . . . Walls Destroyed . | . . . . . . . . . . . . . . . . . . . . . . . . . . . . . . . . Machines Disabled . | . . . . . . . . . . . . . . . . . . . . . . . . . . . . . . . . Actions | -11 -10 -10 -9 -9 -9 -8 -8 -8 -8 -8 -8 -8 -7 -7 -7 -7 -6 -6 -6 -6 -6 -6 -6 -5 -5 -4 -4 -4 -3 -3 -2 --------- Run | Yrd Mat Min Mat Min Exi Min Mat Gar Mat Gar Mat Gar Fac Was Fac Gar Fac Gar Fac Ext Cet Arc Hub Fac Gar Fac Was Fac Res Gar Res Total 21996 | 91 846 563 1314 1460 1581 144 1280 1200 24 1202 207 871 86 664 297 1645 197 715 285 1064 357 442 470 285 1380 172 150 646 423 1233 702 Wait 3673 | . 82 . 225 1015 89 . 230 61 . 145 16 72 . 101 1 258 38 50 111 159 96 93 10 6 155 12 2 88 14 478 66 Move 15614 | 53 672 534 920 436 1272 139 907 965 24 900 159 693 77 445 248 1146 145 565 155 834 207 309 431 237 1032 140 106 420 378 562 503 Hop 1 | . . . . . . . . . . . . . . . . . . . . 1 . . . . . . . . . . . Pick Up 313 | 5 13 4 27 1 46 . 12 21 . 9 1 10 1 12 2 26 3 9 . 3 9 3 2 8 33 . 7 17 7 17 5 Fast Attach 151 | 6 8 . 10 . 14 . 5 8 . 3 . 1 1 8 6 20 2 . 3 . 6 8 . 1 10 1 3 9 . 15 3 Attach 106 | 1 . . 3 . 7 . 3 6 . 4 1 8 . 6 . 8 2 3 . 1 3 . 1 8 12 . 4 6 2 8 9 Detach 12 | 1 . . . . 1 . 1 . . . . . . 1 . 3 . . . . 1 2 . . . . . . . 1 1 Swap 311 | . 3 . 16 . 10 2 19 31 . 33 7 14 3 6 13 35 . 17 3 5 2 2 9 6 23 1 1 18 . 18 14 Drop 361 | . 3 4 32 1 53 . 19 26 . 7 . 9 1 21 8 38 2 8 5 1 18 10 1 1 29 . 14 20 4 22 4 Fire 1223 | 25 56 14 78 6 83 . 69 59 . 54 15 35 2 59 19 86 5 50 7 58 15 2 15 16 72 18 13 68 17 111 96 Melee 132 | . . . . . 6 3 3 19 . 33 8 19 1 5 . 11 . 3 . . . 13 . . 8 . . . . . . Ram . | . . . . . . . . . . . . . . . . . . . . . . . . . . . . . . . . Kick . | . . . . . . . . . . . . . . . . . . . . . . . . . . . . . . . . Crush 41 | . 9 7 3 1 . . 12 . . . . . . . . 1 . . 1 2 . . 1 2 . . . . 1 . 1 Escape Stasis 56 | . . . . . . . . 4 . 14 . 10 . . . 12 . 10 . . . . . . 6 . . . . . . Rewire 2 | . . . . . . . . . . . . . . . . 1 . . . . . . . . . . . . . 1 . Trap . | . . . . . . . . . . . . . . . . . . . . . . . . . . . . . . . . Miscellaneous . | . . . . . . . . . . . . . . . . . . . . . . . . . . . . . . . . Route ------- -11/Scrapyard -10/Materials (discovered 4 exits: *Mat x3 / [*Min]) -10/Mines (discovered 3 exits: *Mat x2 / [*Sub]) -9/Materials (discovered 6 exits: *Mat x3 / *Min x2 / [*Sto]) -9/Mines (discovered 3 exits: *Mat x2 / *Exi) -9/Exiles -8/Mines -8/Materials (discovered 3 exits: *Fac x2 / Gar) -8/Garrison (discovered 3 exits: *Mat x3) -8/Materials -8/Garrison (discovered 4 exits: *Fac x3 / *Mat) -8/Materials -8/Garrison (discovered 3 exits: *Fac x3) -7/Factory -7/Waste -7/Factory -7/Garrison (discovered 3 exits: *Fac x3) -6/Factory -6/Garrison (discovered 3 exits: *Fac x3) -6/Factory -6/Extension (discovered 2 exits: *Fac / *Cet) -6/Cetus (discovered 2 exits: *Fac / [*Arc]) -6/Archives (discovered 3 exits: *Fac / *Hub x2) -6/Hub_04(d) (discovered 4 exits: *Fac x4) -5/Factory (discovered 3 exits: *Upp x2 / Gar) -5/Garrison (discovered 3 exits: *Fac x3) -4/Factory -4/Waste -4/Factory (discovered 2 exits: *Res x2) -3/Research -3/Garrison -2/Research History --------- Turn | Location | Event 21 | -11/Scrapyard | Discovered new exit (range 14) 150 | -11/Scrapyard | Entered Materials 303 | -10/Materials | Build established: Mutant 653 | -10/Materials | Discovered new exit (range 15) 935 | -10/Materials | Discovered new exit (range 10) 1222 | -10/Materials | Discovered new exit (range 8) 1277 | -10/Materials | Core integrity fell below 50% 1323 | -10/Materials | Discovered new exit (range 8) 1714 | -10/Materials | Repaired Lgt. Treads 1742 | -10/Materials | Repaired Lgt. Armor Plating 1844 | -10/Materials | Entered Mines 1927 | -10/Mines | Learned location of Zion (-6) 2057 | -10/Mines | Discovered new exit (range 5) 2093 | -10/Mines | Discovered new exit (range 13) 2783 | -10/Mines | Discovered new exit (range 8) 3189 | -10/Mines | Entered Materials 3189 | -9/Materials | Evolved 2 slots: Propulsion x1, Weapon x1 3457 | -9/Materials | Discovered new exit (range 16) 3590 | -9/Materials | Build established: Tank 3734 | -9/Materials | Repaired Imp. Assault Rifle 3967 | -9/Materials | Discovered new exit (range 8) 4108 | -9/Materials | Discovered new exit (range 4) 4128 | -9/Materials | Learned 2 Storage zone layouts 4162 | -9/Materials | Identified exit to Materials 4162 | -9/Materials | Identified exit to Mines 4206 | -9/Materials | Learned Storage trap positions 4214 | -9/Materials | Loaded intel: 2 repair station locations 4221 | -9/Materials | Learned Storage trap positions 4237 | -9/Materials | Learned 4 Recycling zone layouts 4943 | -9/Materials | Repaired Imp. Assault Rifle 5194 | -9/Materials | Central database locked down 5444 | -9/Materials | Entered Mines 5447 | -9/Mines | Met a Derelict bent on vengeance 5580 | -9/Mines | Discovered exit to Materials (range 9) 5720 | -9/Mines | Found a hidden stash of uninstalled traps 5755 | -9/Mines | Assembled infested the area 5760 | -9/Mines | Assisted by a Guerilla fighting off Assembled 7322 | -9/Mines | Deemed a non-threat by the Exiles lab entrance 7322 | -9/Mines | Discovered new exit (range 5) 7354 | -9/Mines | Entered Exiles 7354 | -9/Exiles | Accompanied by 2 allies 7384 | -9/Exiles | Led the pair of lost Derelicts to a safe place 7402 | -9/Exiles | Met 8R-AWN 7436 | -9/Exiles | Met EX-HEX 7514 | -9/Exiles | Met EX-DEC 7654 | -9/Exiles | Met EX-BIN 7676 | -9/Exiles | Aligned with FarCom system 7678 | -9/Exiles | Given EX-Vault access code 7724 | -9/Exiles | Opened EX-Vault 7778 | -9/Exiles | Warned to stay clear of 0b10 Research branches 8081 | -9/Exiles | Found Potential Leg 8084 | -9/Exiles | Found Potential Leg 8089 | -9/Exiles | Found Longsword +1 8092 | -9/Exiles | Found Modified TNC 8847 | -9/Exiles | Attacked by the Exiles 9079 | -9/Exiles | Destroyed 8R-AWN 9091 | -9/Exiles | Lost 3 parts (1n1u1w) 9354 | -9/Exiles | Core integrity fell below 50% 9368 | -9/Exiles | Lost 4 parts (1n2u1w) 9597 | -9/Exiles | Destroyed EX-BIN 9629 | -9/Exiles | Destroyed EX-HEX 9728 | -9/Exiles | Destroyed EX-DEC 9758 | -9/Exiles | Found Prototype Processor 9766 | -9/Exiles | Found Deploy-a-Sentry 9818 | -9/Exiles | Found Prototype Device 9818 | -9/Exiles | Identified System Purifier 10139 | -9/Exiles | Build established: Scavenger-Tank 10320 | -9/Exiles | Discovered new exit (range 14) 10349 | -9/Exiles | Stole four prototypes: Potential Leg, Modified TNC, Longsword +1, Deploy-a-Sentry 10349 | -9/Exiles | Entered Mines 10628 | -8/Mines | Discovered exit to Materials (range 4) 10636 | -8/Mines | Entered Materials 10636 | -8/Materials | Evolved 2 slots: Utility x2 10886 | -8/Materials | Repaired Imp. Assault Rifle 11283 | -8/Materials | Destroyed 9 combat bots 12297 | -8/Materials | Discovered new exit (range 16) 12821 | -8/Materials | Discovered new exit (range 5) 12833 | -8/Materials | Build established: Tank 13000 | -8/Materials | Identified exit to Garrison 13048 | -8/Materials | Entered Garrison 13070 | -8/Garrison | Triggered checkpoint 13186 | -8/Garrison | Discovered new exit (range 96) 13186 | -8/Garrison | Discovered new exit (range 42) 13186 | -8/Garrison | Discovered new exit (range 66) 13269 | -8/Garrison | Garrison Relay disabled 13434 | -8/Garrison | Triggered checkpoint 13578 | -8/Garrison | Installed Relay Interface Framework 13694 | -8/Garrison | Triggered checkpoint 13876 | -8/Garrison | Garrison Relay disabled 13962 | -8/Garrison | Triggered checkpoint 14540 | -8/Garrison | Triggered checkpoint 14748 | -8/Garrison | Triggered checkpoint 14748 | -8/Garrison | Build established: Bothacker-Tank 14817 | -8/Garrison | Garrison Relay disabled 15275 | -8/Garrison | Garrison Relay disabled 15402 | -8/Garrison | Build established: Bothacker-Mutant 15591 | -8/Garrison | Entered Materials 15643 | -8/Materials | Identified exit to Garrison 15643 | -8/Materials | Entered Garrison 15665 | -8/Garrison | Triggered checkpoint 15711 | -8/Garrison | Discovered new exit (range 5) 15865 | -8/Garrison | Garrison Relay disabled 15901 | -8/Garrison | Triggered checkpoint 16103 | -8/Garrison | Triggered checkpoint 16304 | -8/Garrison | Build established: Bothacker-Tank 16319 | -8/Garrison | Discovered new exit (range 13) 16497 | -8/Garrison | Triggered checkpoint 16558 | -8/Garrison | Garrison Relay disabled 16569 | -8/Garrison | Garrison Relay disabled 16914 | -8/Garrison | Discovered new exit (range 15) 16943 | -8/Garrison | Expanded RIF knowledge: Patrol Navigation 17031 | -8/Garrison | Triggered checkpoint 17078 | -8/Garrison | Garrison Relay disabled 17597 | -8/Garrison | Triggered checkpoint 17844 | -8/Garrison | Discovered new exit (range 11) 17939 | -8/Garrison | Garrison Relay disabled 18223 | -8/Garrison | Triggered checkpoint 18426 | -8/Garrison | Entered Materials 18426 | -8/Materials | Accompanied by 2 allies 18798 | -8/Materials | Garrison activated, responded to threat 18804 | -8/Materials | Core integrity fell below 50% 18826 | -8/Materials | First assault squad dispatched 18838 | -8/Materials | Destroyed 9 combat bots 18850 | -8/Materials | Identified exit to Garrison 18850 | -8/Materials | Entered Garrison 18850 | -8/Garrison | Accompanied by 1 ally 18962 | -8/Garrison | Triggered checkpoint 19021 | -8/Garrison | Garrison Relay disabled 19156 | -8/Garrison | Triggered checkpoint 19162 | -8/Garrison | Triggered checkpoint 19182 | -8/Garrison | System corruption reached 10% 19301 | -8/Garrison | Discovered new exit (range 13) 19458 | -8/Garrison | Expanded RIF knowledge: Structural Interface 19682 | -8/Garrison | Expanded RIF knowledge: Code Merge 19936 | -8/Garrison | Discovered new exit (range 7) 19992 | -8/Garrison | Triggered checkpoint 20043 | -8/Garrison | Discovered new exit (range 20) 20043 | -8/Garrison | Discovered new exit (range 41) 20043 | -8/Garrison | Discovered new exit (range 74) 20053 | -8/Garrison | Garrison Relay disabled 20576 | -8/Garrison | Entered Factory 20576 | -7/Factory | Accompanied by 3 allies 20576 | -7/Factory | Evolved 2 slots: Utility x2 20698 | -7/Factory | Sucked down chute 20698 | -7/Factory | Entered Waste 20713 | -7/Waste | EMP discharged 20724 | -7/Waste | Spotted C-40 Crusher 20748 | -7/Waste | 3 allies followed down the chute 20766 | -7/Waste | Spotted C-40 Crusher 20776 | -7/Waste | Spotted C-40 Crusher 20798 | -7/Waste | Spotted C-40 Crusher 20800 | -7/Waste | Spotted C-40 Crusher 20805 | -7/Waste | Spotted C-40 Crusher 20813 | -7/Waste | EMP discharged 20813 | -7/Waste | System corruption reached 10% 20913 | -7/Waste | EMP discharged 21013 | -7/Waste | EMP discharged 21073 | -7/Waste | Destroyed C-40 Crusher 21085 | -7/Waste | Found Damper Plating 21113 | -7/Waste | EMP discharged 21115 | -7/Waste | Destroyed C-40 Crusher 21173 | -7/Waste | Destroyed C-40 Crusher 21213 | -7/Waste | EMP discharged 21224 | -7/Waste | Found Damper Plating 21259 | -7/Waste | Destroyed C-40 Crusher 21313 | -7/Waste | EMP discharged 21334 | -7/Waste | Destroyed C-40 Crusher 21374 | -7/Waste | Discovered new exit (range 16) 21413 | -7/Waste | EMP discharged 21513 | -7/Waste | EMP discharged 21613 | -7/Waste | EMP discharged 21713 | -7/Waste | EMP discharged 21813 | -7/Waste | EMP discharged 21913 | -7/Waste | EMP discharged 21918 | -7/Waste | Entered Factory 21945 | -7/Factory | Identified Exp. Core Analyzer 22571 | -7/Factory | Garrison activated, responded to threat 22583 | -7/Factory | Garrison activated, responded to threat 22602 | -7/Factory | Identified exit to Garrison 22602 | -7/Factory | Entered Garrison 22746 | -7/Garrison | Garrison Relay disabled 22766 | -7/Garrison | Triggered checkpoint 22994 | -7/Garrison | Triggered checkpoint 23008 | -7/Garrison | Triggered checkpoint 23033 | -7/Garrison | Triggered checkpoint 23074 | -7/Garrison | Destroyed 7 combat bots 23214 | -7/Garrison | Triggered checkpoint 23371 | -7/Garrison | Garrison Relay disabled 23443 | -7/Garrison | Discovered new exit (range 14) 23627 | -7/Garrison | Build established: Bothacker-Mutant 23629 | -7/Garrison | Found embedded Infiltrators 23632 | -7/Garrison | Triggered checkpoint 23869 | -7/Garrison | Expanded RIF knowledge: Threat Obfuscation 23936 | -7/Garrison | Garrison Relay disabled 23985 | -7/Garrison | Discovered new exit (range 12) 24069 | -7/Garrison | Garrison Relay disabled 24075 | -7/Garrison | P-60 Hacker assimilated allied 7X-PUF(x) 24124 | -7/Garrison | Garrison Relay disabled 24133 | -7/Garrison | Garrison Relay disabled 24152 | -7/Garrison | Garrison Relay disabled 24281 | -7/Garrison | Lost 3 allies 24367 | -7/Garrison | Triggered checkpoint 24530 | -7/Garrison | Expanded RIF knowledge: Threat Obfuscation 24547 | -7/Garrison | Garrison Relay disabled 24608 | -7/Garrison | Discovered new exit (range 12) 24803 | -7/Garrison | Spotted B-75 Beast 24829 | -7/Garrison | Allies destroyed B-75 Beast 24839 | -7/Garrison | Build established: Botlord-Tank 24859 | -7/Garrison | Lost 4 allies 24894 | -7/Garrison | Garrison Relay disabled 25870 | -7/Garrison | Entered Factory 25870 | -6/Factory | Accompanied by 1 ally 25870 | -6/Factory | Evolved 2 slots: Power x1, Propulsion x1 25934 | -6/Factory | Repaired Minigun+ 26220 | -6/Factory | First assault squad dispatched 26277 | -6/Factory | Identified exit to Garrison 26277 | -6/Factory | Entered Garrison 26363 | -6/Garrison | Garrison Relay disabled 26482 | -6/Garrison | Spotted B-75 Beast 26482 | -6/Garrison | Spotted B-75 Beast 26559 | -6/Garrison | Triggered checkpoint 26601 | -6/Garrison | Garrison Relay disabled 26745 | -6/Garrison | Triggered checkpoint 26789 | -6/Garrison | Triggered checkpoint 26850 | -6/Garrison | Discovered new exit (range 12) 26883 | -6/Garrison | Triggered checkpoint 26917 | -6/Garrison | Garrison Relay disabled 27009 | -6/Garrison | Discovered new exit (range 43) 27009 | -6/Garrison | Discovered new exit (range 8) 27009 | -6/Garrison | Discovered new exit (range 78) 27119 | -6/Garrison | Triggered checkpoint 27221 | -6/Garrison | Build established: Botlord-Mutant 27237 | -6/Garrison | Expanded RIF knowledge: Robot Detection 27319 | -6/Garrison | Triggered checkpoint 27320 | -6/Garrison | Assimilated Heavy ARC 5a with formatsys_deep 27346 | -6/Garrison | Garrison Relay disabled 27500 | -6/Garrison | Lost 3 allies 27500 | -6/Garrison | Found Relay Coupler [Proto] 27629 | -6/Garrison | Triggered checkpoint 27757 | -6/Garrison | Triggered checkpoint 27764 | -6/Garrison | Build established: Botlord-Tank 27818 | -6/Garrison | Entered Factory 28123 | -6/Factory | Discovered new exit (range 10) 28262 | -6/Factory | Entered Extension 28262 | -6/Extension | Accompanied by 1 ally 28335 | -6/Extension | Rescued a captive Derelict 28336 | -6/Extension | Rescued a captive Derelict 28612 | -6/Extension | Rescued a captive Derelict 28615 | -6/Extension | Rescued a captive Derelict 28634 | -6/Extension | Lost 4 allies 28678 | -6/Extension | Rescued a captive Derelict 28679 | -6/Extension | Rescued a captive Derelict 28688 | -6/Extension | Rescued a captive Derelict 28847 | -6/Extension | Rescued a captive Derelict 29189 | -6/Extension | Spotted B-75 Beast 29197 | -6/Extension | Allies destroyed B-75 Beast 29203 | -6/Extension | Spotted B-75 Beast 29208 | -6/Extension | Destroyed B-75 Beast 29369 | -6/Extension | Rescued A7 29396 | -6/Extension | Rescued a captive Derelict 29428 | -6/Extension | Rescued a captive Derelict 29471 | -6/Extension | Rescued a captive Derelict 29473 | -6/Extension | Rescued a captive Derelict 29504 | -6/Extension | Rescued a captive Derelict 29506 | -6/Extension | Rescued a captive Derelict 29576 | -6/Extension | Rescued a captive Derelict 29597 | -6/Extension | Discovered new exit (range 10) 29599 | -6/Extension | Discovered new exit (range 6) 29615 | -6/Extension | DAS Turret deployed 29887 | -6/Extension | Entered Cetus 29887 | -6/Cetus | Accompanied by 20 allies (A7) 29892 | -6/Cetus | Acquired a Cetus Manufacturing Module code from A7 29944 | -6/Cetus | Spotted Cetus Guard 29944 | -6/Cetus | Allies destroyed Cetus Guard 29949 | -6/Cetus | Spotted Cetus Guard 29949 | -6/Cetus | Spotted Cetus Guard 29958 | -6/Cetus | Allies destroyed Cetus Guard 29962 | -6/Cetus | Allies destroyed Cetus Guard 29992 | -6/Cetus | Lost 6 allies 30167 | -6/Cetus | Started Cetus Manufacturing Module 30183 | -6/Cetus | Escorted A7 to Cetus Mainframe 30192 | -6/Cetus | Manufactured an Enhanced Grunt 30217 | -6/Cetus | Manufactured an Enhanced Grunt 30235 | -6/Cetus | Discovered new exit (range 15) 30242 | -6/Cetus | Manufactured an Enhanced Grunt 30267 | -6/Cetus | Manufactured an Enhanced Grunt 30269 | -6/Cetus | Spotted Cetus Guard 30269 | -6/Cetus | Spotted Cetus Guard 30273 | -6/Cetus | Spotted Cetus Guard 30275 | -6/Cetus | Spotted Cetus Guard 30287 | -6/Cetus | Destroyed Cetus Guard 30292 | -6/Cetus | Manufactured an Enhanced Grunt 30295 | -6/Cetus | Destroyed Cetus Guard 30295 | -6/Cetus | Allies destroyed Cetus Guard 30298 | -6/Cetus | Destroyed Cetus Guard 30306 | -6/Cetus | Discovered new exit (range 15) 30314 | -6/Cetus | Met Revision 17 30350 | -6/Cetus | Lost 7 allies 30451 | -6/Cetus | Entered Archives 30451 | -6/Archives | Accompanied by 12 allies (A7) 30456 | -6/Archives | Received a hacking code to weaken MAIN.C 30541 | -6/Archives | Discovered new exit (range 15) 30639 | -6/Archives | Discovered new exit (range 16) 30735 | -6/Archives | Discovered new exit (range 16) 30794 | -6/Archives | Build established: Botlord-Mutant 31096 | -6/Archives | Entered Hub_04(d) 31096 | -6/Hub_04(d) | Accompanied by 9 allies 31167 | -6/Hub_04(d) | Identified exit to Factory 31399 | -6/Hub_04(d) | Build established: Botlord-Tank 31761 | -6/Hub_04(d) | Build established: Bothacker-Tank 31777 | -6/Hub_04(d) | Network Hub disabled 31782 | -6/Hub_04(d) | Spotted Lightning 31793 | -6/Hub_04(d) | Spotted Lightning 31799 | -6/Hub_04(d) | Spotted Lightning 31844 | -6/Hub_04(d) | System corruption reached 10% 31846 | -6/Hub_04(d) | Entered Factory 31846 | -5/Factory | Evolved 2 slots: Utility x2 31995 | -5/Factory | Identified exit to Upper Caves 32372 | -5/Factory | Identified exit to Garrison 32374 | -5/Factory | Entered Garrison 32418 | -5/Garrison | Triggered checkpoint 32507 | -5/Garrison | Garrison Relay disabled 32544 | -5/Garrison | Discovered new exit (range 53) 32544 | -5/Garrison | Discovered new exit (range 84) 32544 | -5/Garrison | Discovered new exit (range 57) 32766 | -5/Garrison | Spotted B-75 Beast 32772 | -5/Garrison | Assimilated Beast 6a with formatsys_high 32776 | -5/Garrison | Triggered checkpoint 32813 | -5/Garrison | Triggered checkpoint 32856 | -5/Garrison | Lost 3 allies 32890 | -5/Garrison | Found embedded Infiltrators 32908 | -5/Garrison | P-80 Master assimilated allied HB-HD5(x) 32929 | -5/Garrison | Build established: Botlord-Tank 32940 | -5/Garrison | System corruption reached 10% 32990 | -5/Garrison | Lost 5 parts (1n1u3w) 32999 | -5/Garrison | Expanded RIF knowledge: Alert ID Control 33032 | -5/Garrison | Triggered checkpoint 33050 | -5/Garrison | Garrison Relay disabled 33196 | -5/Garrison | Triggered checkpoint 33230 | -5/Garrison | Watched by a mysterious "MATRIX" hacker. 33478 | -5/Garrison | Triggered checkpoint 33486 | -5/Garrison | Expanded RIF knowledge: Autoassimilate 33511 | -5/Garrison | Garrison Relay disabled 33612 | -5/Garrison | Triggered checkpoint 33806 | -5/Garrison | Found Relay Coupler [Proto] 33811 | -5/Garrison | Found Relay Coupler [Proto] 33815 | -5/Garrison | Found Relay Coupler [Proto] 33819 | -5/Garrison | Found Relay Coupler [Proto] 34408 | -5/Garrison | Entered Factory 34408 | -4/Factory | Accompanied by 5 allies 34408 | -4/Factory | Evolved 2 slots: Propulsion x2 34569 | -4/Factory | Lost 3 allies 34632 | -4/Factory | Unchained authorized (QV-33N) 34666 | -4/Factory | Sucked down chute 34666 | -4/Factory | Entered Waste 34681 | -4/Waste | EMP discharged 34687 | -4/Waste | Spotted C-40 Crusher 34688 | -4/Waste | Spotted C-40 Crusher 34709 | -4/Waste | Destroyed C-40 Crusher 34720 | -4/Waste | Found Damper Plating 34729 | -4/Waste | Spotted C-40 Crusher 34736 | -4/Waste | Spotted C-40 Crusher 34740 | -4/Waste | Spotted C-40 Crusher 34746 | -4/Waste | Spotted C-40 Crusher 34751 | -4/Waste | 8 allies followed down the chute 34751 | -4/Waste | Allies destroyed C-40 Crusher 34760 | -4/Waste | Allies destroyed C-40 Crusher 34781 | -4/Waste | EMP discharged 34781 | -4/Waste | Allies destroyed C-40 Crusher 34798 | -4/Waste | Allies destroyed C-40 Crusher 34850 | -4/Waste | Discovered new exit (range 11) 34877 | -4/Waste | Entered Factory 34907 | -4/Factory | Found Quantum Capacitor 35028 | -4/Factory | Unchained authorized (QV-33N) 35545 | -4/Factory | Discovered new exit (range 14) 35584 | -4/Factory | Discovered new exit (range 15) 35723 | -4/Factory | System corruption reached 10% 35815 | -4/Factory | Identified exit to Research 35844 | -4/Factory | Entered Research 35844 | -3/Research | Evolved 2 slots: Utility x2 35993 | -3/Research | Identified exit to Garrison 36044 | -3/Research | Revision forces began assault on 0b10 36140 | -3/Research | Met up with Revision 17++ 36498 | -3/Research | Entered Garrison 36498 | -3/Garrison | Accompanied by 1 ally 36645 | -3/Garrison | Spotted B-86 Titan 36662 | -3/Garrison | Triggered checkpoint 36667 | -3/Garrison | Destroyed B-86 Titan 36741 | -3/Garrison | Triggered checkpoint 36795 | -3/Garrison | Q-Series assembled to engage unique threat in Research 36874 | -3/Garrison | Spotted B-86 Titan 36909 | -3/Garrison | Destroyed B-86 Titan 36958 | -3/Garrison | Found Relay Coupler [Proto] 36961 | -3/Garrison | Found Relay Coupler [Proto] 36963 | -3/Garrison | Found Relay Coupler [Proto] 36965 | -3/Garrison | Found Relay Coupler [Proto] 37018 | -3/Garrison | Destroyed 7 combat bots 37107 | -3/Garrison | Lost 8 parts (1p3n4u) 37654 | -3/Garrison | Triggered checkpoint 37681 | -3/Garrison | Found embedded Infiltrators 37687 | -3/Garrison | Garrison Relay disabled 37765 | -3/Garrison | Q-Series assembled to engage unique threat in Research 38280 | -3/Garrison | Triggered checkpoint 38314 | -3/Garrison | Garrison Relay disabled 38382 | -3/Garrison | Discovered new exit (range 10) 38395 | -3/Garrison | Identified exit to Research 38433 | -3/Garrison | Entered Research 38433 | -2/Research | Accompanied by 2 allies 38433 | -2/Research | Evolved 2 slots: Power x1, Utility x1 38640 | -2/Research | Unchained authorized (QV-33N) 39433 | -2/Research | Lost 4 parts (1n2u1w) 39514 | -2/Research | System corruption reached 10% 39567 | -2/Research | Lost 5 parts (4p1n) 39586 | -2/Research | Self-destructed Last Messages --------------- 39509_ S-43 Plague suffers critical hit (Blast). 39509_ S-43 Plague destroyed. 39513_ Integrated Corrupted Lgt. Quantum Reactor (+14). 39519_ U-05 Engineer builds a Door. 39520_ System corrupted: Matter fused (-8). 39524_ K-01 Serf collects debris. 39536_ Lgt. Quantum Reactor destroyed. 39536_ K-01 Serf collects debris. 39545_ System corrupted: Matter fused (-5). 39568_ ALERT: Suspicious intruders detected, dispatching Specialist reinforcements to area. 39572_ Imp. Heavy Treads destroyed. 39577_ System corrupted: FCS attempts to trigger Hvy. Linear Accelerator. 39579_ Imp. Heavy Treads destroyed. 39581_ Critical hit (Burn: +50). 39581_ Hvy. Linear Accelerator destroyed. 39583_ Linear Accelerator destroyed. 39583_ Adv. Force Field destroyed. 39585_ Critical hit (Burn: +50). 39585_ Identified Adv. Heavy Siege Treads. Map ----- +----------------------------------------------------+ | #????????????????????????????????????????????????? | | #????????????????????????????????????????????????? | | #????????????????????????????????????????????????? | | #????????????????????????????????????????????????? | | #????????????????????????????????????????????????? | | #????????????????????????????????????????????????? | | ##########+??????????????????????????????????????? | | ?????????????????????????????????????? | | ?????????????????????????????????????? | | ?????????????????????????????????????? | | ???????????t??k??????????????????????? | | ######## T#??????????????????????????????????????? | | #?????????????????????????????????????????? | | #????????????????????????????#????????????? | | / ########?????????????????? #????????????? | | # #?????????????????? #????????????? | | # =[!#?????????????????? #############? | | # =[ #?????????????????? / ?? | | # [[ #?????????????????? #### ######### | | # #????????????????? #### ### = | | ?######" #??????????????? ? # # | | #########+###################"####### # | | =%%%% % n H # | | =[%%% u % %nn + | | #########+#######""#####/;########### # = | | #??##%= %[ #?#####?# @ #???????# # | | #???## !#???????# #???????######## ! | | #????# #???????# #??????????????# / | | ###### !|#???????# #??????????????####### | | + +=% !|#???????# #????????????????????? | | !######%% #???????#! #????????????????????? | | #????#"#""###???????########????????????????????? | | ##????######?????????????????????????????????????? | | ?????????????????????????????????????????????????? | | ?????????????????????????????????????????????????? | | ?????????????????????????????????????????????????? | | ?????????????????????????????????????????????????? | | ?????????????????????????????????????????????????? | | ?????????????????????????????????????????????????? | | ?????????????????????????????????????????????????? | | ?????????????????????????????????????????????????? | | ?????????????????????????????????????????????????? | | ?????????????????????????????????????????????????? | | ?????????????????????????????????????????????????? | | ?????????????????????????????????????????????????? | | ?????????????????????????????????????????????????? | | ?????????????????????????????????????????????????? | | ?????????????????????????????????????????????????? | | ?????????????????????????????????????????????????? | | ?????????????????????????????????????????????????? | +----------------------------------------------------+ Best States ------------- Heat Dissipation 126 Energy Generation 45 Energy Capacity 1350 Matter Stores 300 Matter Capacity 300 Sight Range 16 Robot Scan Range 16 Terrain Scan Range 20 Terrain Scan Density 10 EM Shielding 2 Armor Coverage 1600 Resistance: KI 20 Resistance: EM 90 Weapon Cycling 15 Evasion (%) 40 Core Analysis 8 Recoil Reduction 6 Offensive Hacking 36 Relay Coupler Types 4 Relay Coupler Value 156 Trap Extractor Capacity 4 Item Schematics ----------------- Huge Storage Unit | -10/Materials | Hacked Robot Schematics ------------------ M-13 Machinist | -6/Extension | Hacked Fabricated ------------ Nothing Repaired ---------- Lgt. Treads | 32% | -10/Materials Lgt. Armor Plating | 35% | -10/Materials Imp. Assault Rifle | 30% | -9/Materials Imp. Assault Rifle | 33% | -9/Materials Imp. Assault Rifle | 15% | -8/Materials Minigun | 27% | -6/Factory Studied --------- Hvy. Assault Rifle | -9/Materials | Hacked Lgt. Assault Rifle | -9/Materials | Hacked Lgt. Treads | -9/Materials | Hacked Minigun | -8/Materials | Hacked Alien Tech Used ----------------- None Achievements -------------- Deep Understanding Challenges ------------ None Game ------ Seed TimingGrapheneReconfigurator Manual? 0 Play Time 04:10:07 Cumulative 379.4 hours Start 2026.02.14 @ 21:09:56 End 2026.02.19 @ 03:56:24 Sessions 10 Manual Loads 0 Difficulty Rogue Special Mode None Game No. 147 Rogue 146 Adventurer 1 Explorer 0 Win Type - Total 15 Types 6/2/2/0/1/0/2/1/0/1 Lore% 62 Gallery% 79 Achievement% 70 Wizard Run 0 Options --------- Layout 0 ASCII 0 Keyboard 0 Movement Arrows Keybinds 0 Fullscreen 2 Font 24/Smallcaps Map View 76x50 Zoom Use 0% Tactical HUD 1 Map Filters NONE Filters NONE Steam 1 RUN: 464a89f8-2494-412a-8d4d-4961a61b2820